Workbook

Sheet CAISSE
G1: C A I S S E | T1: VENTILATION CA SEMAINE | AG1: CHIFFRE D'AFFAIRE TTC ANNUEL | AY1: TOTAL DEPENSES
R3: Notice
B6: DATE | C6: JOUR | D6: SEMAINE | E6: MOIS | F6: CATEGORIE | G6: OBJET | H6: CODES CLIENT | I6: N° de Document | J6: DESIGNATION | K6: Type de PAIEMENT | L6: NB Réglmt | M6: CREDIT | N6: DEBIT | O6: RECETTE JOUR | P6: DEPENSES JOUR | AW6: JANVIER | AX6: FÉVRIER | AY6: MARS | AZ6: AVRIL | BA6: MAI | BB6: JUIN | BC6: JUILLET | BD6: AOÛT | BE6: SEPTEMBRE | BF6: OCTOBRE | BG6: NOVEMBRE | BH6: DÉCEMBRE
AE7: JANVIER | AF7: FÉVRIER | AG7: MARS | AH7: AVRIL | AI7: MAI | AJ7: JUIN | AK7: JUILLET | AL7: AOÛT | AM7: SEPTEMBRE | AN7: OCTOBRE | AO7: NOVEMBRE | AP7: DÉCEMBRE
B8: 2013-01-01
B9: 2013-09-27 | C9: =DATE(YEAR(B9),MONTH(B9),DAY(B9)) -> 41544 | D9: =INT(MOD(INT((B9-2)/7)+0.6,52+5/28))+1 -> 39 | E9: =IF(CaJour=0,"",UPPER(TEXT(C9,"mmmm"))) -> SEPTEMBRE | F9: Taxi | K9: Espèce | M9: 70 | O9: =IF(AND((CaJour=B9),(CACatégorie="Résultat")),IF(B8=B9,M8,0)+IF(B6=B9,M6,0),0) -> 0 | P9: =IF(AND((CaJour=B9),(CACatégorie="Résultat")),IF(B8=B9,N8,0)+IF(B6=B9,N6,0),0) -> 0 | R9: Semaine N° | T9: TOTAL | U9: Taxi | V9: Location | W9: Publicité | AD9: Espèce | AE9: =SUMPRODUCT((CaMois=AE7)*(CaMode=$AD$9)*CaCrédit) ->  | AV9: DEPENSES | AW9: =SUMPRODUCT((CaMois=AW6)*(CACatégorie="Dépense")*CaDébit) ->  | BI9: =SUM(AW9:BH9) -> 
B10: 2013-09-27 | C10: =DATE(YEAR(B10),MONTH(B10),DAY(B10)) -> 41544 | D10: 39 | E10: SEPTEMBRE | F10: Résultat | O10: =IF(AND((CaJour=B10),(CACatégorie="Résultat")),IF(B9=B10,M9,0)+IF(B8=B10,M8,0),0) -> 70 | P10: =IF(AND((CaJour=B10),(CACatégorie="Résultat")),IF(B9=B10,N9,0)+IF(B8=B10,N8,0),0) -> 0 | T10: =SUMPRODUCT((CaSem=S9)*CaCrédit) ->  | U10: =SUMPRODUCT((CaSem=S9)*(CACatégorie=U9)*CaCrédit) ->  | V10: =SUMPRODUCT((CaSem=S9)*(CACatégorie=V9)*CaCrédit) ->  | W10: =SUMPRODUCT((CaSem=S9)*(CACatégorie=W9)*CaCrédit) -> 
B11: 2013-09-30 | C11: 41547 | D11: 40 | E11: SEPTEMBRE | F11: Publicité | G11: Factures | H11: PUCYC0001 | I11: F2013421 | K11: Virement | L11: R1 | M11: 1300 | O11: =IF(AND((CaJour=B11),(CACatégorie="Résultat")),IF(B10=B11,M10,0)+IF(B9=B11,M9,0)+IF(B8=B11,M8,0),0) -> 0 | P11: =IF(AND((CaJour=B11),(CACatégorie="Résultat")),IF(B10=B11,N10,0)+IF(B9=B11,N9,0)+IF(B8=B11,N8,0),0) -> 0 | AD11: Chèque | AE11: =SUMPRODUCT((CaMois=AE7)*(CaMode=$AD$11)*CaCrédit) -> 
B12: 2013-09-30 | C12: 41547 | D12: 40 | E12: SEPTEMBRE | F12: Banque | G12: Remise | K12: Virement | N12: 1400 | O12: =IF(AND((CaJour=B12),(CACatégorie="Résultat")),IF(B11=B12,M11,0)+IF(B10=B12,M10,0)+IF(B9=B12,M9,0)+IF(B8=B12,M8,0),0) -> 0 | P12: =IF(AND((CaJour=B12),(CACatégorie="Résultat")),IF(B11=B12,N11,0)+IF(B10=B12,N10,0)+IF(B9=B12,N9,0)+IF(B8=B12,N8,0),0) -> 0 | T12: Espèce | U12: Chèque | V12: CB | W12: Virement | X12: Tickets | Y12: vérif
B13: 2013-09-30 | C13: 41547 | D13: 40 | E13: SEPTEMBRE | F13: Résultat | O13: =IF(AND((CaJour=B13),(CACatégorie="Résultat")),IF(B12=B13,M12,0)+IF(B11=B13,M11,0)+IF(B10=B13,M10,0)+IF(B9=B13,M9,0),0) -> 1300 | P13: =IF(AND((CaJour=B13),(CACatégorie="Résultat")),IF(B12=B13,N12,0)+IF(B11=B13,N11,0)+IF(B10=B13,N10,0)+IF(B9=B13,N9,0),0) -> 1400 | T13: =SUMPRODUCT((CaSem=S9)*(CaMode="Espèce")*CaCrédit) ->  | U13: =SUMPRODUCT((CaSem=S9)*(CaMode=U12)*CaCrédit) ->  | V13: =SUMPRODUCT((CaSem=S9)*(CaMode=V12)*CaCrédit) ->  | W13: =SUMPRODUCT((CaSem=S9)*(CaMode=W12)*CaCrédit) ->  | X13: =SUMPRODUCT((CaSem=S9)*(CaMode=X12)*CaCrédit) ->  | Y13: =SUM(T13:X14) ->  | AD13: CB | AE13: =SUMPRODUCT((CaMois=AE7)*(CaMode=$AD$13)*CaCrédit) -> 
B14: 2013-10-02 | C14: 41549 | D14: 40 | E14: OCTOBRE | F14: Location | G14: Factures | J14: Vélo1 | K14: Chèque | M14: 90 | O14: =IF(AND((CaJour=B14),(CACatégorie="Résultat")),IF(B13=B14,M13,0)+IF(B12=B14,M12,0)+IF(B11=B14,M11,0)+IF(B10=B14,M10,0)+IF(B9=B14,M9,0),0) -> 0 | P14: =IF(AND((CaJour=B14),(CACatégorie="Résultat")),IF(B13=B14,N13,0)+IF(B12=B14,N12,0)+IF(B11=B14,N11,0)+IF(B10=B14,N10,0)+IF(B9=B14,N9,0),0) -> 0 | Y14: =SUMPRODUCT((CaSem=S9)*CaRecJour) -> 0
B15: 2013-10-02 | C15: 41549 | D15: 40 | E15: OCTOBRE | F15: Résultat | O15: =IF(AND((CaJour=B15),(CACatégorie="Résultat")),IF(B14=B15,M14,0)+IF(B13=B15,M13,0)+IF(B12=B15,M12,0)+IF(B11=B15,M11,0)+IF(B10=B15,M10,0)+IF(B9=B15,M9,0),0) -> 90 | P15: =IF(AND((CaJour=B15),(CACatégorie="Résultat")),IF(B14=B15,N14,0)+IF(B13=B15,N13,0)+IF(B12=B15,N12,0)+IF(B11=B15,N11,0)+IF(B10=B15,N10,0)+IF(B9=B15,N9,0),0) -> 0 | R15: FdC | T15: Remise esp | U15: Remise chq | V15: Remise CB | W15: Rem Virmt | X15: Tickets | Y15: TOTAL | Z15: Report | AD15: Virement | AE15: =SUMPRODUCT((CaMois=AE7)*(CaMode=$AD$15)*CaCrédit) -> 
B16: 2013-10-03 | C16: 41550 | D16: 40 | E16: OCTOBRE | F16: Taxi | K16: Espèce | M16: 50 | O16: =IF(AND((CaJour=B16),(CACatégorie="Résultat")),IF(B15=B16,M15,0)+IF(B14=B16,M14,0)+IF(B13=B16,M13,0)+IF(B12=B16,M12,0)+IF(B11=B16,M11,0)+IF(B10=B16,M10,0)+IF(B9=B16,M9,0),0) -> 0 | P16: =IF(AND((CaJour=B16),(CACatégorie="Résultat")),IF(B15=B16,N15,0)+IF(B14=B16,N14,0)+IF(B13=B16,N13,0)+IF(B12=B16,N12,0)+IF(B11=B16,N11,0)+IF(B10=B16,N10,0)+IF(B9=B16,N9,0),0) -> 0 | T16: =SUMPRODUCT((CaSem=S9)*(CACatégorie="Banque")*(CaMode=T12)*CaDébit) ->  | U16: =SUMPRODUCT((CaSem=S9)*(CACatégorie="Banque")*(CaMode=U12)*CaDébit) ->  | V16: =SUMPRODUCT((CaSem=S9)*(CaMode=V12)*CaDébit) ->  | W16: =SUMPRODUCT((CaSem=S9)*(CaMode=W12)*CaDébit) ->  | X16: =SUMPRODUCT((CaSem=S9)*(CaMode=X12)*CaDébit) ->  | Y16: =SUM(T16:X16) ->  | Z16: =(T10+R16)-Y16 -> 
B17: 2013-10-03 | C17: 41550 | D17: 40 | E17: OCTOBRE | F17: Taxi | K17: Tickets | M17: 10 | O17: =IF(AND((CaJour=B17),(CACatégorie="Résultat")),IF(B16=B17,M16,0)+IF(B15=B17,M15,0)+IF(B14=B17,M14,0)+IF(B13=B17,M13,0)+IF(B12=B17,M12,0)+IF(B11=B17,M11,0)+IF(B10=B17,M10,0)+IF(B9=B17,M9,0),0) -> 0 | P17: =IF(AND((CaJour=B17),(CACatégorie="Résultat")),IF(B16=B17,N16,0)+IF(B15=B17,N15,0)+IF(B14=B17,N14,0)+IF(B13=B17,N13,0)+IF(B12=B17,N12,0)+IF(B11=B17,N11,0)+IF(B10=B17,N10,0)+IF(B9=B17,N9,0),0) -> 0
B18: 2013-10-03 | C18: 41550 | D18: 40 | E18: OCTOBRE | F18: Taxi | K18: Chèque | M18: 46 | O18: =IF(AND((CaJour=B18),(CACatégorie="Résultat")),IF(B17=B18,M17,0)+IF(B16=B18,M16,0)+IF(B15=B18,M15,0)+IF(B14=B18,M14,0)+IF(B13=B18,M13,0)+IF(B12=B18,M12,0)+IF(B11=B18,M11,0)+IF(B10=B18,M10,0)+IF(B9=B18,M9,0),0) -> 0 | P18: =IF(AND((CaJour=B18),(CACatégorie="Résultat")),IF(B17=B18,N17,0)+IF(B16=B18,N16,0)+IF(B15=B18,N15,0)+IF(B14=B18,N14,0)+IF(B13=B18,N13,0)+IF(B12=B18,N12,0)+IF(B11=B18,N11,0)+IF(B10=B18,N10,0)+IF(B9=B18,N9,0),0) -> 0 | AD18: TOTAL | AE18: =AE9+AE11+AE13+AE15 ->  | AF18: =AF9+AF11+AF13+AF15 ->  | AG18: =AG9+AG11+AG13+AG15 -> 
B19: 2013-10-03 | C19: 41550 | D19: 40 | E19: OCTOBRE | F19: Publicité | G19: Factures | H19: PUCYC0001 | I19: F2013421 | K19: Chèque | L19: R2 | M19: 2300 | O19: =IF(AND((CaJour=B19),(CACatégorie="Résultat")),IF(B18=B19,M18,0)+IF(B17=B19,M17,0)+IF(B16=B19,M16,0)+IF(B15=B19,M15,0)+IF(B14=B19,M14,0)+IF(B13=B19,M13,0)+IF(B12=B19,M12,0)+IF(B11=B19,M11,0)+IF(B10=B19,M10,0)+IF(B9=B19,M9,0),0) -> 0 | P19: =IF(AND((CaJour=B19),(CACatégorie="Résultat")),IF(B18=B19,N18,0)+IF(B17=B19,N17,0)+IF(B16=B19,N16,0)+IF(B15=B19,N15,0)+IF(B14=B19,N14,0)+IF(B13=B19,N13,0)+IF(B12=B19,N12,0)+IF(B11=B19,N11,0)+IF(B10=B19,N10,0)+IF(B9=B19,N9,0)+IF(B9=B20,N9,0),0) -> 0 | R19: Semaine N° | T19: TOTAL | U19: Taxi | V19: Location | W19: Publicité
B20: 2013-10-03 | C20: 41550 | D20: 40 | E20: OCTOBRE | F20: Divers | K20: Tickets | N20: 10 | O20: =IF(AND((CaJour=B20),(CACatégorie="Résultat")),IF(B19=B20,M19,0)+IF(B18=B20,M18,0)+IF(B17=B20,M17,0)+IF(B16=B20,M16,0)+IF(B15=B20,M15,0)+IF(B14=B20,M14,0)+IF(B13=B20,M13,0)+IF(B12=B20,M12,0)+IF(B11=B20,M11,0)+IF(B10=B20,M10,0)+IF(B9=B20,M9,0),0) -> 0 | P20: =IF(AND((CaJour=B20),(CACatégorie="Résultat")),IF(B19=B20,N19,0)+IF(B18=B20,N18,0)+IF(B17=B20,N17,0)+IF(B16=B20,N16,0)+IF(B15=B20,N15,0)+IF(B14=B20,N14,0)+IF(B13=B20,N13,0)+IF(B12=B20,N12,0)+IF(B11=B20,N11,0)+IF(B10=B20,N10,0)+IF(B9=B21,N9,0),0) -> 0 | T20: =SUMPRODUCT((CaSem=S19)*(CaSem>0)*CaCrédit) ->  | U20: =SUMPRODUCT((CaSem=S19)*(CACatégorie=U19)*CaCrédit) ->  | V20: =SUMPRODUCT((CaSem=S19)*(CACatégorie=V19)*CaCrédit) ->  | W20: =SUMPRODUCT((CaSem=S19)*(CACatégorie=W19)*CaCrédit) ->  | AC20: Clic ici > > > | AD20: Location | AE20: =SUMPRODUCT((CaMois=AE7)*(CACatégorie=$AD$20)*CaCrédit) -> 
B21: 2013-10-03 | C21: 41550 | D21: 40 | E21: OCTOBRE | F21: Résultat | O21: =IF(AND((CaJour=B21),(CACatégorie="Résultat")),IF(B20=B21,M20,0)+IF(B19=B21,M19,0)+IF(B18=B21,M18,0)+IF(B17=B21,M17,0)+IF(B16=B21,M16,0)+IF(B15=B21,M15,0)+IF(B14=B21,M14,0)+IF(B13=B21,M13,0)+IF(B12=B21,M12,0)+IF(B11=B21,M11,0)+IF(B10=B21,M10,0)+IF(B9=B21,M9,0),0) -> 2406 | P21: =IF(AND((CaJour=B21),(CACatégorie="Résultat")),IF(B20=B21,N20,0)+IF(B19=B21,N19,0)+IF(B18=B21,N18,0)+IF(B17=B21,N17,0)+IF(B16=B21,N16,0)+IF(B15=B21,N15,0)+IF(B14=B21,N14,0)+IF(B13=B21,N13,0)+IF(B12=B21,N12,0)+IF(B11=B21,N11,0)+IF(B10=B21,N10,0)+IF(B9=B21,N9,0),0) -> 10
B22: 2013-10-04 | C22: 41551 | D22: 40 | E22: OCTOBRE | F22: Taxi | K22: Espèce | M22: 20 | O22: =IF(AND((CaJour=B22),(CACatégorie="Résultat")),IF(B21=B22,M21,0)+IF(B20=B22,M20,0)+IF(B19=B22,M19,0)+IF(B18=B22,M18,0)+IF(B17=B22,M17,0)+IF(B16=B22,M16,0)+IF(B15=B22,M15,0)+IF(B14=B22,M14,0)+IF(B13=B22,M13,0)+IF(B12=B22,M12,0)+IF(B11=B22,M11,0)+IF(B10=B22,M10,0)+IF(B9=B22,M9,0),0) -> 0 | P22: =IF(AND((CaJour=B22),(CACatégorie="Résultat")),IF(B21=B22,N21,0)+IF(B20=B22,N20,0)+IF(B19=B22,N19,0)+IF(B18=B22,N18,0)+IF(B17=B22,N17,0)+IF(B16=B22,N16,0)+IF(B15=B22,N15,0)+IF(B14=B22,N14,0)+IF(B13=B22,N13,0)+IF(B12=B22,N12,0)+IF(B11=B22,N11,0)+IF(B10=B22,N10,0)+IF(B9=B22,N9,0),0) -> 0 | T22: Espèce | U22: Chèque | V22: CB | W22: Virement | X22: Tickets | Y22: vérif
B23: 2013-10-04 | C23: 41551 | D23: 40 | E23: OCTOBRE | F23: Taxi | K23: Chèque | M23: 78 | O23: =IF(AND((CaJour=B23),(CACatégorie="Résultat")),IF(B22=B23,M22,0)+IF(B21=B23,M21,0)+IF(B20=B23,M20,0)+IF(B19=B23,M19,0)+IF(B18=B23,M18,0)+IF(B17=B23,M17,0)+IF(B16=B23,M16,0)+IF(B15=B23,M15,0)+IF(B14=B23,M14,0)+IF(B13=B23,M13,0)+IF(B12=B23,M12,0)+IF(B11=B23,M11,0)+IF(B10=B23,M10,0)+IF(B9=B23,M9,0),0) -> 0 | P23: =IF(AND((CaJour=B23),(CACatégorie="Résultat")),IF(B22=B23,N22,0)+IF(B21=B23,N21,0)+IF(B20=B23,N20,0)+IF(B19=B23,N19,0)+IF(B18=B23,N18,0)+IF(B17=B23,N17,0)+IF(B16=B23,N16,0)+IF(B15=B23,N15,0)+IF(B14=B23,N14,0)+IF(B13=B23,N13,0)+IF(B12=B23,N12,0)+IF(B11=B23,N11,0)+IF(B10=B23,N10,0)+IF(B9=B23,N9,0),0) -> 0 | T23: =SUMPRODUCT((CaSem=S19)*(CaMode="Espèce")*CaCrédit) ->  | U23: =SUMPRODUCT((CaSem=S19)*(CaMode=U22)*CaCrédit) ->  | V23: =SUMPRODUCT((CaSem=S19)*(CaMode=V22)*CaCrédit) ->  | W23: =SUMPRODUCT((CaSem=S19)*(CaMode=W22)*CaCrédit) ->  | X23: =SUMPRODUCT((CaSem=S19)*(CaMode=X22)*CaCrédit) ->  | Y23: =SUM(T23:X24) -> 
B24: 2013-10-04 | C24: 41551 | D24: 40 | E24: OCTOBRE | F24: Résultat | O24: =IF(AND((CaJour=B24),(CACatégorie="Résultat")),IF(B23=B24,M23,0)+IF(B22=B24,M22,0)+IF(B21=B24,M21,0)+IF(B20=B24,M20,0)+IF(B19=B24,M19,0)+IF(B18=B24,M18,0)+IF(B17=B24,M17,0)+IF(B16=B24,M16,0)+IF(B15=B24,M15,0)+IF(B14=B24,M14,0)+IF(B13=B24,M13,0)+IF(B12=B24,M12,0)+IF(B11=B24,M11,0)+IF(B10=B24,M10,0)+IF(B9=B24,M9,0),0) -> 98 | P24: =IF(AND((CaJour=B24),(CACatégorie="Résultat")),IF(B23=B24,N23,0)+IF(B22=B24,N22,0)+IF(B21=B24,N21,0)+IF(B20=B24,N20,0)+IF(B19=B24,N19,0)+IF(B18=B24,N18,0)+IF(B17=B24,N17,0)+IF(B16=B24,N16,0)+IF(B15=B24,N15,0)+IF(B14=B24,N14,0)+IF(B13=B24,N13,0)+IF(B12=B24,N12,0)+IF(B11=B24,N11,0)+IF(B10=B24,N10,0)+IF(B9=B24,N9,0),0) -> 0 | Y24: =SUMPRODUCT((CaSem=S19)*CaRecJour) -> 0
B25: 2013-10-05 | C25: 41552 | D25: 40 | E25: OCTOBRE | F25: Taxi | K25: Espèce | M25: 65 | O25: =IF(AND((CaJour=B25),(CACatégorie="Résultat")),IF(B24=B25,M24,0)+IF(B23=B25,M23,0)+IF(B22=B25,M22,0)+IF(B21=B25,M21,0)+IF(B20=B25,M20,0)+IF(B19=B25,M19,0)+IF(B18=B25,M18,0)+IF(B17=B25,M17,0)+IF(B16=B25,M16,0)+IF(B15=B25,M15,0)+IF(B14=B25,M14,0)+IF(B13=B25,M13,0)+IF(B12=B25,M12,0)+IF(B11=B25,M11,0)+IF(B10=B25,M10,0)+IF(B9=B25,M9,0),0) -> 0 | P25: =IF(AND((CaJour=B25),(CACatégorie="Résultat")),IF(B24=B25,N24,0)+IF(B23=B25,N23,0)+IF(B22=B25,N22,0)+IF(B21=B25,N21,0)+IF(B20=B25,N20,0)+IF(B19=B25,N19,0)+IF(B18=B25,N18,0)+IF(B17=B25,N17,0)+IF(B16=B25,N16,0)+IF(B15=B25,N15,0)+IF(B14=B25,N14,0)+IF(B13=B25,N13,0)+IF(B12=B25,N12,0)+IF(B11=B25,N11,0)+IF(B10=B25,N10,0)+IF(B9=B25,N9,0),0) -> 0 | R25: FdC | T25: Remise esp | U25: Remise chq | V25: Remise CB | W25: Rem Virmt | X25: Tickets | Y25: TOTAL | Z25: Report
B26: 2013-10-05 | C26: 41552 | D26: 40 | E26: OCTOBRE | F26: Résultat | O26: =IF(AND((CaJour=B26),(CACatégorie="Résultat")),IF(B25=B26,M25,0)+IF(B24=B26,M24,0)+IF(B23=B26,M23,0)+IF(B22=B26,M22,0)+IF(B21=B26,M21,0)+IF(B20=B26,M20,0)+IF(B19=B26,M19,0)+IF(B18=B26,M18,0)+IF(B17=B26,M17,0)+IF(B16=B26,M16,0)+IF(B15=B26,M15,0)+IF(B14=B26,M14,0)+IF(B13=B26,M13,0)+IF(B12=B26,M12,0)+IF(B11=B26,M11,0)+IF(B10=B26,M10,0)+IF(B9=B26,M9,0),0) -> 65 | P26: =IF(AND((CaJour=B26),(CACatégorie="Résultat")),IF(B25=B26,N25,0)+IF(B24=B26,N24,0)+IF(B23=B26,N23,0)+IF(B22=B26,N22,0)+IF(B21=B26,N21,0)+IF(B20=B26,N20,0)+IF(B19=B26,N19,0)+IF(B18=B26,N18,0)+IF(B17=B26,N17,0)+IF(B16=B26,N16,0)+IF(B15=B26,N15,0)+IF(B14=B26,N14,0)+IF(B13=B26,N13,0)+IF(B12=B26,N12,0)+IF(B11=B26,N11,0)+IF(B10=B26,N10,0)+IF(B9=B26,N9,0),0) -> 0 | R26: =Z16 ->  | T26: =SUMPRODUCT((CaSem=S19)*(CACatégorie="Banque")*(CaMode=T22)*CaDébit) ->  | U26: =SUMPRODUCT((CaSem=S19)*(CACatégorie="Banque")*(CaMode=U22)*CaDébit) ->  | V26: =SUMPRODUCT((CaSem=S19)*(CaMode=V22)*CaDébit) ->  | W26: =SUMPRODUCT((CaSem=S19)*(CaMode=W22)*CaDébit) ->  | X26: =SUMPRODUCT((CaSem=S19)*(CaMode=X22)*CaDébit) ->  | Y26: =SUM(T26:X26) ->  | Z26: =(T20+R26)-Y26 -> 
B27: 2013-10-06 | C27: 41553 | D27: 40 | E27: OCTOBRE | F27: Taxi | K27: CB | M27: 108 | O27: =IF(AND((CaJour=B27),(CACatégorie="Résultat")),IF(B26=B27,M26,0)+IF(B25=B27,M25,0)+IF(B24=B27,M24,0)+IF(B23=B27,M23,0)+IF(B22=B27,M22,0)+IF(B21=B27,M21,0)+IF(B20=B27,M20,0)+IF(B19=B27,M19,0)+IF(B18=B27,M18,0)+IF(B17=B27,M17,0)+IF(B16=B27,M16,0)+IF(B15=B27,M15,0)+IF(B14=B27,M14,0)+IF(B13=B27,M13,0)+IF(B12=B27,M12,0)+IF(B11=B27,M11,0)+IF(B10=B27,M10,0)+IF(B9=B27,M9,0),0) -> 0 | P27: =IF(AND((CaJour=B27),(CACatégorie="Résultat")),IF(B26=B27,N26,0)+IF(B25=B27,N25,0)+IF(B24=B27,N24,0)+IF(B23=B27,N23,0)+IF(B22=B27,N22,0)+IF(B21=B27,N21,0)+IF(B20=B27,N20,0)+IF(B19=B27,N19,0)+IF(B18=B27,N18,0)+IF(B17=B27,N17,0)+IF(B16=B27,N16,0)+IF(B15=B27,N15,0)+IF(B14=B27,N14,0)+IF(B13=B27,N13,0)+IF(B12=B27,N12,0)+IF(B11=B27,N11,0)+IF(B10=B27,N10,0)+IF(B9=B27,N9,0),0) -> 0
B28: 2013-10-06 | C28: 41553 | D28: 40 | E28: OCTOBRE | F28: Banque | G28: Remise | H28: CL002 | K28: CB | N28: 108 | O28: =IF(AND((CaJour=B28),(CACatégorie="Résultat")),IF(B27=B28,M27,0)+IF(B26=B28,M26,0)+IF(B25=B28,M25,0)+IF(B24=B28,M24,0)+IF(B23=B28,M23,0)+IF(B22=B28,M22,0)+IF(B21=B28,M21,0)+IF(B20=B28,M20,0)+IF(B19=B28,M19,0)+IF(B18=B28,M18,0)+IF(B17=B28,M17,0)+IF(B16=B28,M16,0)+IF(B15=B28,M15,0)+IF(B14=B28,M14,0)+IF(B13=B28,M13,0)+IF(B12=B28,M12,0)+IF(B11=B28,M11,0)+IF(B10=B28,M10,0)+IF(B9=B28,M9,0),0) -> 0 | P28: =IF(AND((CaJour=B28),(CACatégorie="Résultat")),IF(B27=B28,N27,0)+IF(B26=B28,N26,0)+IF(B25=B28,N25,0)+IF(B24=B28,N24,0)+IF(B23=B28,N23,0)+IF(B22=B28,N22,0)+IF(B21=B28,N21,0)+IF(B20=B28,N20,0)+IF(B19=B28,N19,0)+IF(B18=B28,N18,0)+IF(B17=B28,N17,0)+IF(B16=B28,N16,0)+IF(B15=B28,N15,0)+IF(B14=B28,N14,0)+IF(B13=B28,N13,0)+IF(B12=B28,N12,0)+IF(B11=B28,N11,0)+IF(B10=B28,N10,0)+IF(B9=B28,N9,0),0) -> 0
B29: 2013-10-06 | C29: 41553 | D29: 40 | E29: OCTOBRE | F29: Résultat | O29: =IF(AND((CaJour=B29),(CACatégorie="Résultat")),IF(B28=B29,M28,0)+IF(B27=B29,M27,0)+IF(B26=B29,M26,0)+IF(B25=B29,M25,0)+IF(B24=B29,M24,0)+IF(B23=B29,M23,0)+IF(B22=B29,M22,0)+IF(B21=B29,M21,0)+IF(B20=B29,M20,0)+IF(B19=B29,M19,0)+IF(B18=B29,M18,0)+IF(B17=B29,M17,0)+IF(B16=B29,M16,0)+IF(B15=B29,M15,0)+IF(B14=B29,M14,0)+IF(B13=B29,M13,0)+IF(B12=B29,M12,0)+IF(B11=B29,M11,0)+IF(B10=B29,M10,0)+IF(B9=B29,M9,0),0) -> 108 | P29: =IF(AND((CaJour=B29),(CACatégorie="Résultat")),IF(B28=B29,N28,0)+IF(B27=B29,N27,0)+IF(B26=B29,N26,0)+IF(B25=B29,N25,0)+IF(B24=B29,N24,0)+IF(B23=B29,N23,0)+IF(B22=B29,N22,0)+IF(B21=B29,N21,0)+IF(B20=B29,N20,0)+IF(B19=B29,N19,0)+IF(B18=B29,N18,0)+IF(B17=B29,N17,0)+IF(B16=B29,N16,0)+IF(B15=B29,N15,0)+IF(B14=B29,N14,0)+IF(B13=B29,N13,0)+IF(B12=B29,N12,0)+IF(B11=B29,N11,0)+IF(B10=B29,N10,0)+IF(B9=B29,N9,0),0) -> 108 | R29: Semaine N° | T29: TOTAL | U29: Taxi | V29: Location | W29: Publicité
B30: 2013-10-07 | C30: 41554 | D30: 41 | E30: OCTOBRE | F30: Banque | G30: Remise | K30: Espèce | N30: 150 | O30: 0 | P30: 0 | T30: =SUMPRODUCT((CaSem=S29)*(CaSem>0)*CaCrédit) ->  | U30: =SUMPRODUCT((CaSem=S29)*(CACatégorie=U29)*CaCrédit) ->  | V30: =SUMPRODUCT((CaSem=S29)*(CACatégorie=V29)*CaCrédit) ->  | W30: =SUMPRODUCT((CaSem=S29)*(CACatégorie=W29)*CaCrédit) -> 
B31: 2013-10-07 | C31: 41554 | D31: 41 | E31: OCTOBRE | F31: Banque | G31: Remise | K31: Chèque | N31: 734 | O31: 0 | P31: 0
B32: 2013-10-07 | C32: 41554 | D32: 41 | E32: OCTOBRE | F32: Taxi | K32: Espèce | M32: 85 | O32: 0 | P32: 0 | T32: Espèce | U32: Chèque | V32: CB | W32: Virement | X32: Tickets | Y32: vérif
B33: 2013-10-07 | C33: =DATE(YEAR(B33),MONTH(B33),DAY(B33)) -> 41554 | D33: =INT(MOD(INT((B33-2)/7)+0.6,52+5/28))+1 -> 41 | E33: OCTOBRE | F33: Résultat | O33: 85 | P33: 884 | T33: =SUMPRODUCT((CaSem=S29)*(CaMode="Espèce")*CaCrédit) ->  | U33: =SUMPRODUCT((CaSem=S29)*(CaMode=U32)*CaCrédit) ->  | V33: =SUMPRODUCT((CaSem=S29)*(CaMode=V32)*CaCrédit) ->  | W33: =SUMPRODUCT((CaSem=S29)*(CaMode=W32)*CaCrédit) ->  | X33: =SUMPRODUCT((CaSem=S29)*(CaMode=X32)*CaCrédit) ->  | Y33: =SUM(T33:X34) -> 
B34: 2013-10-06 | C34: 41553 | D34: 40 | E34: OCTOBRE | F34: Publicité | G34: Factures | K34: Espèce | M34: 1850 | O34: 0 | P34: 0 | Y34: =SUMPRODUCT((CaSem=S29)*CaRecJour) -> 0
B35: 2013-10-10 | C35: 41557 | D35: 41 | E35: OCTOBRE | F35: Résultat | O35: 0 | P35: 0 | R35: FdC | T35: Remise esp | U35: Remise chq | V35: Remise CB | W35: Rem Virmt | X35: Tickets | Y35: TOTAL | Z35: Report
B36: 2013-10-11 | C36: 41558 | D36: 41 | E36: OCTOBRE | F36: Taxi | K36: Chèque | M36: 500 | O36: 0 | P36: 0 | R36: =Z26 ->  | T36: =SUMPRODUCT((CaSem=S29)*(CACatégorie="Banque")*(CaMode=T32)*CaDébit) ->  | U36: =SUMPRODUCT((CaSem=S29)*(CACatégorie="Banque")*(CaMode=U32)*CaDébit) ->  | V36: =SUMPRODUCT((CaSem=S29)*(CaMode=V32)*CaDébit) ->  | W36: =SUMPRODUCT((CaSem=S29)*(CaMode=W32)*CaDébit) ->  | X36: =SUMPRODUCT((CaSem=S29)*(CaMode=X32)*CaDébit) ->  | Y36: =SUM(T36:X36) ->  | Z36: =(T30+R36)-Y36 -> 
B37: 2013-10-11 | C37: 41558 | D37: 41 | E37: OCTOBRE | F37: Résultat | O37: 500 | P37: 0
B38: 2013-10-12 | C38: 41559 | D38: 41 | E38: OCTOBRE | F38: Publicité | G38: Factures | H38: PUCYC0001 | I38: f2013421 | K38: CB | M38: 700 | O38: 0 | P38: 0 | AD38: Objectifs
B39: 2013-10-12 | C39: 41559 | D39: 41 | E39: OCTOBRE | F39: Banque | G39: Remise | K39: CB | N39: 500 | O39: 0 | P39: 0 | R39: Semaine N° | T39: TOTAL | U39: Taxi | V39: Location | W39: Publicité | AD39: taxi | AE39: 780 | AF39: 390 | AG39: 780 | AH39: 1560 | AI39: 1560 | AJ39: =390+1560 -> 1950 | AK39: =390+1560 -> 1950 | AL39: 1560 | AM39: 1560 | AN39: 780 | AO39: 390 | AP39: 780
B40: 2013-10-12 | C40: 41559 | D40: 41 | E40: OCTOBRE | F40: Banque | G40: Remise | K40: Espèce | N40: 1500 | O40: 0 | P40: 0 | T40: =SUMPRODUCT((CaSem=S39)*(CaSem>0)*CaCrédit) ->  | U40: =SUMPRODUCT((CaSem=S39)*(CACatégorie=U39)*CaCrédit) ->  | V40: =SUMPRODUCT((CaSem=S39)*(CACatégorie=V39)*CaCrédit) ->  | W40: =SUMPRODUCT((CaSem=S39)*(CACatégorie=W39)*CaCrédit) ->  | AD40: pub 1+2 | AE40: =1040+520 -> 1560 | AF40: =1040+1040 -> 2080 | AG40: =1040+1040 -> 2080 | AH40: =2080+1040 -> 3120 | AI40: =2080+1040 -> 3120 | AJ40: =2080+1040 -> 3120 | AK40: =2080+1040 -> 3120 | AL40: =2080+1040 -> 3120 | AM40: =2080+520 -> 2600 | AN40: =2080 -> 2080 | AO40: 0 | AP40: =520+520 -> 1040
B41: 2013-10-12 | C41: 41559 | D41: 41 | E41: OCTOBRE | F41: Banque | G41: Remise | K41: Chèque | N41: 200 | O41: 0 | P41: 0 | AD41: cyclopolitain | AF41: 0 | AG41: 3000 | AN41: 0
B42: 2013-10-12 | C42: 41559 | D42: 41 | E42: OCTOBRE | F42: Résultat | O42: 700 | P42: 2200 | T42: Espèce | U42: Chèque | V42: CB | W42: Virement | X42: Tickets | Y42: vérif | AD42: loc2 | AE42: 180 | AF42: 180 | AG42: 360 | AH42: 420 | AI42: 480 | AJ42: 480 | AK42: 480 | AL42: 420 | AM42: 360 | AN42: 180 | AO42: 0 | AP42: 180
B43: 2013-10-17 | C43: 41564 | D43: 42 | E43: OCTOBRE | F43: Dépense | G43: Factures | H43: PU0020 | K43: Espèce | N43: 300 | O43: 0 | P43: 0 | T43: =SUMPRODUCT((CaSem=S39)*(CaMode="Espèce")*CaCrédit) ->  | U43: =SUMPRODUCT((CaSem=S39)*(CaMode=U42)*CaCrédit) ->  | V43: =SUMPRODUCT((CaSem=S39)*(CaMode=V42)*CaCrédit) ->  | W43: =SUMPRODUCT((CaSem=S39)*(CaMode=W42)*CaCrédit) ->  | X43: =SUMPRODUCT((CaSem=S39)*(CaMode=X42)*CaCrédit) ->  | Y43: =SUM(T43:X44) -> 
B44: 2013-10-17 | C44: 41564 | D44: 42 | E44: OCTOBRE | F44: Dépense | G44: Factures | H44: CL005 | K44: Espèce | N44: 250 | O44: 0 | P44: 0 | Y44: =SUMPRODUCT((CaSem=S39)*CaRecJour) -> 0 | AE44: =AE39+AE40+AE41+AE42 -> 2520 | AF44: =AF39+AF40+AF41+AF42 -> 2650 | AG44: 6220 | AH44: 5100 | AI44: 5160 | AJ44: 5550 | AK44: 5550 | AL44: 5100 | AM44: 4520 | AN44: 3040 | AO44: 390 | AP44: 2000
B45: 2013-10-17 | C45: 41564 | D45: 42 | E45: OCTOBRE | F45: Résultat | O45: 0 | P45: 550 | R45: FdC | T45: Remise esp | U45: Remise chq | V45: Remise CB | W45: Rem Virmt | X45: Tickets | Y45: TOTAL | Z45: Report
B46: 2013-10-19 | C46: 41566 | D46: 42 | E46: OCTOBRE | F46: Publicité | O46: 0 | P46: 0 | R46: =Z36 ->  | T46: =SUMPRODUCT((CaSem=S39)*(CACatégorie="Banque")*(CaMode=T42)*CaDébit) ->  | U46: =SUMPRODUCT((CaSem=S39)*(CACatégorie="Banque")*(CaMode=U42)*CaDébit) ->  | V46: =SUMPRODUCT((CaSem=S39)*(CaMode=V42)*CaDébit) ->  | W46: =SUMPRODUCT((CaSem=S39)*(CaMode=W42)*CaDébit) ->  | X46: =SUMPRODUCT((CaSem=S39)*(CaMode=X42)*CaDébit) ->  | Y46: =SUM(T46:X46) ->  | Z46: =(T40+R46)-Y46 -> 
B47: 2013-10-19 | C47: 41566 | D47: 42 | E47: OCTOBRE | F47: Location | J47: Vélo1 | M47: 100 | O47: 0 | P47: 0
B48: 2014-01-31 | C48: 41670 | D48: 5 | E48: JANVIER | F48: Taxi | K48: Espèce | M48: 100 | O48: 0 | P48: 0
B49: 2014-01-31 | C49: 41670 | D49: 5 | E49: JANVIER | F49: Résultat | K49: Résultat | O49: 100 | P49: 0 | R49: Semaine N° | T49: TOTAL | U49: Taxi | V49: Location | W49: Publicité
B50: 2014-02-01 | C50: 41671 | D50: 5 | E50: FÉVRIER | F50: Taxi | K50: Chèque | M50: 200 | O50: 0 | P50: 0 | T50: =SUMPRODUCT((CaSem=S49)*(CaSem>0)*CaCrédit) ->  | U50: =SUMPRODUCT((CaSem=S49)*(CACatégorie=U49)*CaCrédit) ->  | V50: =SUMPRODUCT((CaSem=S49)*(CACatégorie=V49)*CaCrédit) ->  | W50: =SUMPRODUCT((CaSem=S49)*(CACatégorie=W49)*CaCrédit) -> 
B51: 2013-02-01 | C51: 41306 | D51: 5 | E51: FÉVRIER | F51: Taxi | K51: CB | M51: 150 | O51: 0 | P51: 0
B52: 2013-01-04 | C52: 41278 | D52: 1 | E52: JANVIER | F52: Location | J52: Vélo2 | M52: 240 | O52: 0 | P52: 0 | T52: Espèce | U52: Chèque | V52: CB | W52: Virement | X52: Tickets | Y52: vérif
B53: 2013-10-01 | C53: 41548 | D53: 40 | E53: OCTOBRE | F53: Publicité | G53: Factures | H53: PUAPF002 | I53: F2013682 | K53: Chèque | L53: R1 | M53: 520 | O53: 0 | P53: 0 | T53: =SUMPRODUCT((CaSem=S49)*(CaMode="Espèce")*CaCrédit) ->  | U53: =SUMPRODUCT((CaSem=S49)*(CaMode=U52)*CaCrédit) ->  | V53: =SUMPRODUCT((CaSem=S49)*(CaMode=V52)*CaCrédit) ->  | W53: =SUMPRODUCT((CaSem=S49)*(CaMode=W52)*CaCrédit) ->  | X53: =SUMPRODUCT((CaSem=S49)*(CaMode=X52)*CaCrédit) ->  | Y53: =SUM(T53:X54) -> 
B54: 2013-10-20 | C54: 41567 | D54: 42 | E54: OCTOBRE | F54: Publicité | G54: Factures | H54: PUAPF002 | I54: F2013682 | K54: CB | L54: R2 | M54: 1100 | O54: 0 | P54: 0 | Y54: =SUMPRODUCT((CaSem=S49)*CaRecJour) -> 0
B55: 2013-11-05 | C55: 41583 | D55: 45 | E55: NOVEMBRE | F55: Publicité | G55: Factures | H55: PUCYC0001 | I55: 130005 | K55: Chèque | L55: R1 | M55: 1000 | O55: 0 | P55: 0 | R55: FdC | T55: Remise esp | U55: Remise chq | V55: Remise CB | W55: Rem Virmt | X55: Tickets | Y55: TOTAL | Z55: Report
B56: 2013-11-05 | C56: 41583 | D56: 45 | E56: NOVEMBRE | F56: Résultat | O56: 1000 | P56: 0 | R56: =Z46 ->  | T56: =SUMPRODUCT((CaSem=S49)*(CACatégorie="Banque")*(CaMode=T52)*CaDébit) ->  | U56: =SUMPRODUCT((CaSem=S49)*(CACatégorie="Banque")*(CaMode=U52)*CaDébit) ->  | V56: =SUMPRODUCT((CaSem=S49)*(CaMode=V52)*CaDébit) ->  | W56: =SUMPRODUCT((CaSem=S49)*(CaMode=W52)*CaDébit) ->  | X56: =SUMPRODUCT((CaSem=S49)*(CaMode=X52)*CaDébit) ->  | Y56: =SUM(T56:X56) ->  | Z56: =(T50+R56)-Y56 -> 
B57: 2013-11-10 | C57: 41588 | D57: 45 | E57: NOVEMBRE | F57: Publicité | G57: Factures | H57: PUCYC0001 | I57: 130005 | K57: Chèque | L57: R2 | M57: 1550 | O57: 0 | P57: 0
B58: 2013-11-10 | C58: 41588 | D58: 45 | E58: NOVEMBRE | F58: Résultat | O58: 1550 | P58: 0
B59: 2013-10-10 | C59: 41557 | D59: 41 | E59: OCTOBRE | F59: Publicité | G59: Factures | H59: PUCYC0001 | I59: 130010 | K59: Chèque | L59: R1 | M59: 1000 | O59: 0 | P59: 0 | R59: Semaine N° | T59: TOTAL | U59: Taxi | V59: Location | W59: Publicité
B60: 2013-11-06 | C60: 41584 | D60: 45 | E60: NOVEMBRE | F60: Publicité | H60: PUCYC0001 | I60: 130010 | K60: Chèque | L60: R2 | M60: 800 | O60: 0 | P60: 0 | T60: =SUMPRODUCT((CaSem=S59)*(CaSem>0)*CaCrédit) ->  | U60: =SUMPRODUCT((CaSem=S59)*(CACatégorie=U59)*CaCrédit) ->  | V60: =SUMPRODUCT((CaSem=S59)*(CACatégorie=V59)*CaCrédit) ->  | W60: =SUMPRODUCT((CaSem=S59)*(CACatégorie=W59)*CaCrédit) -> 
B61: 2013-12-12 | C61: 41620 | D61: 50 | E61: DÉCEMBRE | F61: Publicité | H61: PUCYC0001 | I61: 130010 | K61: Chèque | L61: R3 | M61: 800 | O61: 0 | P61: 0
B62: 2014-01-03 | C62: 41642 | D62: 1 | E62: JANVIER | F62: Publicité | H62: PUCYC0001 | I62: 130010 | K62: Chèque | L62: R4 | M62: 850 | O62: 0 | P62: 0 | T62: Espèce | U62: Chèque | V62: CB | W62: Virement | X62: Tickets | Y62: vérif
B63: 2014-02-13 | C63: 41683 | D63: 7 | E63: FÉVRIER | O63: 0 | P63: 0 | T63: =SUMPRODUCT((CaSem=S59)*(CaMode="Espèce")*CaCrédit) ->  | U63: =SUMPRODUCT((CaSem=S59)*(CaMode=U62)*CaCrédit) ->  | V63: =SUMPRODUCT((CaSem=S59)*(CaMode=V62)*CaCrédit) ->  | W63: =SUMPRODUCT((CaSem=S59)*(CaMode=W62)*CaCrédit) ->  | X63: =SUMPRODUCT((CaSem=S59)*(CaMode=X62)*CaCrédit) ->  | Y63: =SUM(T63:X64) -> 
B64: 2014-02-20 | C64: 41690 | D64: 8 | E64: FÉVRIER | F64: Location | G64: Frais généraux | H64: 5698 | I64: 256431 | J64: duchemole | M64: 500 | O64: 0 | P64: 0 | Y64: =SUMPRODUCT((CaSem=S59)*CaRecJour) -> 0
B65: 2014-02-25 | C65: 41695 | D65: 9 | E65: FÉVRIER | F65: Dépense | G65: Impots | H65: 5698 | I65: 256431 | J65: txpro | N65: 2000 | O65: 0 | P65: 0 | R65: FdC | T65: Remise esp | U65: Remise chq | V65: Remise CB | W65: Rem Virmt | X65: Tickets | Y65: TOTAL | Z65: Report
B66: 2014-02-27 | C66: 41697 | D66: 9 | E66: FÉVRIER | F66: Publicité | G66: Factures | H66: 6532478 | I66: 65214789 | J66: rocher | M66: 1500 | O66: 0 | P66: 0 | R66: =Z56 ->  | T66: =SUMPRODUCT((CaSem=S59)*(CACatégorie="Banque")*(CaMode=T62)*CaDébit) ->  | U66: =SUMPRODUCT((CaSem=S59)*(CACatégorie="Banque")*(CaMode=U62)*CaDébit) ->  | V66: =SUMPRODUCT((CaSem=S59)*(CaMode=V62)*CaDébit) ->  | W66: =SUMPRODUCT((CaSem=S59)*(CaMode=W62)*CaDébit) ->  | X66: =SUMPRODUCT((CaSem=S59)*(CaMode=X62)*CaDébit) ->  | Y66: =SUM(T66:X66) ->  | Z66: =(T60+R66)-Y66 -> 
B67: 2013-12-12 | C67: 41620 | D67: 50 | E67: DÉCEMBRE | M67: 11.1 | N67: 11.2 | O67: 0 | P67: 0
B68: 2013-12-15 | C68: 41623 | D68: 50 | E68: DÉCEMBRE | M68: 100.25 | N68: 200.25 | O68: 0 | P68: 0
C69: 0 | D69: 52 | O69: 0 | P69: 0 | R69: Semaine N° | T69: TOTAL | U69: Taxi | V69: Location | W69: Publicité
C70: 0 | D70: 52 | O70: 0 | P70: 0 | T70: =SUMPRODUCT((CaSem=S69)*(CaSem>0)*CaCrédit) ->  | U70: =SUMPRODUCT((CaSem=S69)*(CACatégorie=U69)*CaCrédit) ->  | V70: =SUMPRODUCT((CaSem=S69)*(CACatégorie=V69)*CaCrédit) ->  | W70: =SUMPRODUCT((CaSem=S69)*(CACatégorie=W69)*CaCrédit) -> 
C71: 0 | D71: 52 | O71: 0 | P71: 0
C72: 0 | D72: 52 | O72: 0 | P72: 0 | T72: Espèce | U72: Chèque | V72: CB | W72: Virement | X72: Tickets | Y72: vérif
C73: 0 | D73: 52 | E73: =IF(CaJour=0,"",UPPER(TEXT(C73,"mmmm"))) ->  | O73: 0 | P73: 0 | T73: =SUMPRODUCT((CaSem=S69)*(CaMode="Espèce")*CaCrédit) ->  | U73: =SUMPRODUCT((CaSem=S69)*(CaMode=U72)*CaCrédit) ->  | V73: =SUMPRODUCT((CaSem=S69)*(CaMode=V72)*CaCrédit) ->  | W73: =SUMPRODUCT((CaSem=S69)*(CaMode=W72)*CaCrédit) ->  | X73: =SUMPRODUCT((CaSem=S69)*(CaMode=X72)*CaCrédit) ->  | Y73: =SUM(T73:X74) -> 
C74: =DATE(YEAR(B74),MONTH(B74),DAY(B74)) -> 0 | D74: =INT(MOD(INT((B74-2)/7)+0.6,52+5/28))+1 -> 52 | O74: 0 | P74: 0 | Y74: =SUMPRODUCT((CaSem=S69)*CaRecJour) -> 0
C75: 0 | D75: 52 | O75: 0 | P75: 0 | R75: FdC | T75: Remise esp | U75: Remise chq | V75: Remise CB | W75: Rem Virmt | X75: Tickets | Y75: TOTAL | Z75: Report
C76: 0 | D76: 52 | O76: 0 | P76: 0 | R76: =Z66 ->  | T76: =SUMPRODUCT((CaSem=S69)*(CACatégorie="Banque")*(CaMode=T72)*CaDébit) ->  | U76: =SUMPRODUCT((CaSem=S69)*(CACatégorie="Banque")*(CaMode=U72)*CaDébit) ->  | V76: =SUMPRODUCT((CaSem=S69)*(CaMode=V72)*CaDébit) ->  | W76: =SUMPRODUCT((CaSem=S69)*(CaMode=W72)*CaDébit) ->  | X76: =SUMPRODUCT((CaSem=S69)*(CaMode=X72)*CaDébit) ->  | Y76: =SUM(T76:X76) ->  | Z76: =(T70+R76)-Y76 -> 
C77: 0 | D77: 52 | O77: 0 | P77: 0
C78: 0 | D78: 52 | O78: 0 | P78: 0
C79: 0 | D79: 52 | O79: 0 | P79: 0 | R79: Semaine N° | T79: TOTAL | U79: Taxi | V79: Location | W79: Publicité
C80: 0 | D80: 52 | O80: 0 | P80: 0 | T80: =SUMPRODUCT((CaSem=S79)*(CaSem>0)*CaCrédit) ->  | U80: =SUMPRODUCT((CaSem=S79)*(CACatégorie=U79)*CaCrédit) ->  | V80: =SUMPRODUCT((CaSem=S79)*(CACatégorie=V79)*CaCrédit) ->  | W80: =SUMPRODUCT((CaSem=S79)*(CACatégorie=W79)*CaCrédit) -> 
C81: 0 | D81: 52 | O81: 0 | P81: 0
C82: 0 | D82: 52 | O82: 0 | P82: 0 | T82: Espèce | U82: Chèque | V82: CB | W82: Virement | X82: Tickets | Y82: vérif
C83: 0 | D83: 52 | O83: 0 | P83: 0 | T83: =SUMPRODUCT((CaSem=S79)*(CaMode="Espèce")*CaCrédit) ->  | U83: =SUMPRODUCT((CaSem=S79)*(CaMode=U82)*CaCrédit) ->  | V83: =SUMPRODUCT((CaSem=S79)*(CaMode=V82)*CaCrédit) ->  | W83: =SUMPRODUCT((CaSem=S79)*(CaMode=W82)*CaCrédit) ->  | X83: =SUMPRODUCT((CaSem=S79)*(CaMode=X82)*CaCrédit) ->  | Y83: =SUM(T83:X84) -> 
C84: 0 | D84: 52 | O84: 0 | P84: 0 | Y84: =SUMPRODUCT((CaSem=S79)*CaRecJour) -> 0
C85: 0 | D85: 52 | O85: 0 | P85: 0 | R85: FdC | T85: Remise esp | U85: Remise chq | V85: Remise CB | W85: Rem Virmt | X85: Tickets | Y85: TOTAL | Z85: Report
C86: 0 | D86: 52 | O86: 0 | P86: 0 | R86: =Z76 ->  | T86: =SUMPRODUCT((CaSem=S79)*(CACatégorie="Banque")*(CaMode=T82)*CaDébit) ->  | U86: =SUMPRODUCT((CaSem=S79)*(CACatégorie="Banque")*(CaMode=U82)*CaDébit) ->  | V86: =SUMPRODUCT((CaSem=S79)*(CaMode=V82)*CaDébit) ->  | W86: =SUMPRODUCT((CaSem=S79)*(CaMode=W82)*CaDébit) ->  | X86: =SUMPRODUCT((CaSem=S79)*(CaMode=X82)*CaDébit) ->  | Y86: =SUM(T86:X86) ->  | Z86: =(T80+R86)-Y86 -> 
C87: 0 | D87: 52 | O87: 0 | P87: 0
C88: 0 | D88: 52 | O88: 0 | P88: 0
C89: 0 | D89: 52 | O89: 0 | P89: 0 | R89: Semaine N° | T89: TOTAL | U89: Taxi | V89: Location | W89: Publicité
C90: 0 | D90: 52 | O90: 0 | P90: 0 | T90: =SUMPRODUCT((CaSem=S89)*(CaSem>0)*CaCrédit) ->  | U90: =SUMPRODUCT((CaSem=S89)*(CACatégorie=U89)*CaCrédit) ->  | V90: =SUMPRODUCT((CaSem=S89)*(CACatégorie=V89)*CaCrédit) ->  | W90: =SUMPRODUCT((CaSem=S89)*(CACatégorie=W89)*CaCrédit) -> 
C91: 0 | D91: 52 | O91: 0 | P91: 0
C92: 0 | D92: 52 | O92: 0 | P92: 0 | T92: Espèce | U92: Chèque | V92: CB | W92: Virement | X92: Tickets | Y92: vérif
C93: 0 | D93: 52 | O93: =IF(AND((CaJour=B93),(CACatégorie="Résultat")),IF(B92=B93,M92,0)+IF(B91=B93,M91,0)+IF(B90=B93,M90,0)+IF(B89=B93,M89,0)+IF(B88=B93,M88,0)+IF(B87=B93,M87,0)+IF(B86=B93,M86,0)+IF(B85=B93,M85,0)+IF(B84=B93,M84,0)+IF(B83=B93,M83,0)+IF(B82=B93,M82,0)+IF(B81=B93,M81,0)+IF(B80=B93,M80,0)+IF(B79=B93,M79,0)+IF(B78=B93,M78,0)+IF(B77=B93,M77,0)+IF(B76=B93,M76,0)+IF(B75=B93,M75,0)+IF(B74=B93,M74,0)+IF(B73=B93,M73,0),0) -> 0 | P93: =IF(AND((CaJour=B93),(CACatégorie="Résultat")),IF(B92=B93,N92,0)+IF(B91=B93,N91,0)+IF(B90=B93,N90,0)+IF(B89=B93,N89,0)+IF(B88=B93,N88,0)+IF(B87=B93,N87,0)+IF(B86=B93,N86,0)+IF(B85=B93,N85,0)+IF(B84=B93,N84,0)+IF(B83=B93,N83,0)+IF(B82=B93,N82,0)+IF(B81=B93,N81,0)+IF(B80=B93,N80,0)+IF(B79=B93,N79,0)+IF(B78=B93,N78,0)+IF(B77=B93,N77,0)+IF(B76=B93,N76,0)+IF(B75=B93,N75,0)+IF(B74=B93,N74,0)+IF(B73=B93,N73,0),0) -> 0 | T93: =SUMPRODUCT((CaSem=S89)*(CaMode="Espèce")*CaCrédit) ->  | U93: =SUMPRODUCT((CaSem=S89)*(CaMode=U92)*CaCrédit) ->  | V93: =SUMPRODUCT((CaSem=S89)*(CaMode=V92)*CaCrédit) ->  | W93: =SUMPRODUCT((CaSem=S89)*(CaMode=W92)*CaCrédit) ->  | X93: =SUMPRODUCT((CaSem=S89)*(CaMode=X92)*CaCrédit) ->  | Y93: =SUM(T93:X94) -> 
C94: 0 | D94: 52 | O94: 0 | P94: 0 | Y94: =SUMPRODUCT((CaSem=S89)*CaRecJour) -> 0
C95: 0 | D95: 52 | O95: 0 | P95: 0 | R95: FdC | T95: Remise esp | U95: Remise chq | V95: Remise CB | W95: Rem Virmt | X95: Tickets | Y95: TOTAL | Z95: Report
C96: 0 | D96: 52 | O96: 0 | P96: 0 | R96: =Z86 ->  | T96: =SUMPRODUCT((CaSem=S89)*(CACatégorie="Banque")*(CaMode=T92)*CaDébit) ->  | U96: =SUMPRODUCT((CaSem=S89)*(CACatégorie="Banque")*(CaMode=U92)*CaDébit) ->  | V96: =SUMPRODUCT((CaSem=S89)*(CaMode=V92)*CaDébit) ->  | W96: =SUMPRODUCT((CaSem=S89)*(CaMode=W92)*CaDébit) ->  | X96: =SUMPRODUCT((CaSem=S89)*(CaMode=X92)*CaDébit) ->  | Y96: =SUM(T96:X96) ->  | Z96: =(T90+R96)-Y96 -> 
C97: 0 | D97: 52 | O97: 0 | P97: 0
C98: 0 | D98: 52 | O98: 0 | P98: 0
C99: 0 | D99: 52 | O99: 0 | P99: 0 | R99: Semaine N° | T99: TOTAL | U99: Taxi | V99: Location | W99: Publicité
C100: 0 | D100: 52 | O100: 0 | P100: 0 | T100: =SUMPRODUCT((CaSem=S99)*(CaSem>0)*CaCrédit) ->  | U100: =SUMPRODUCT((CaSem=S99)*(CACatégorie=U99)*CaCrédit) ->  | V100: =SUMPRODUCT((CaSem=S99)*(CACatégorie=V99)*CaCrédit) ->  | W100: =SUMPRODUCT((CaSem=S99)*(CACatégorie=W99)*CaCrédit) -> 
C101: 0 | D101: 52 | O101: 0 | P101: 0
C102: 0 | D102: 52 | O102: 0 | P102: 0 | T102: Espèce | U102: Chèque | V102: CB | W102: Virement | X102: Tickets | Y102: vérif
C103: 0 | D103: 52 | O103: 0 | P103: 0 | T103: =SUMPRODUCT((CaSem=S99)*(CaMode="Espèce")*CaCrédit) ->  | U103: =SUMPRODUCT((CaSem=S99)*(CaMode=U102)*CaCrédit) ->  | V103: =SUMPRODUCT((CaSem=S99)*(CaMode=V102)*CaCrédit) ->  | W103: =SUMPRODUCT((CaSem=S99)*(CaMode=W102)*CaCrédit) ->  | X103: =SUMPRODUCT((CaSem=S99)*(CaMode=X102)*CaCrédit) ->  | Y103: =SUM(T103:X104) -> 
C104: 0 | D104: 52 | O104: 0 | P104: 0 | Y104: =SUMPRODUCT((CaSem=S99)*CaRecJour) -> 0
C105: 0 | D105: 52 | O105: 0 | P105: 0 | R105: FdC | T105: Remise esp | U105: Remise chq | V105: Remise CB | W105: Rem Virmt | X105: Tickets | Y105: TOTAL | Z105: Report
C106: 0 | D106: 52 | O106: 0 | P106: 0 | R106: =Z96 ->  | T106: =SUMPRODUCT((CaSem=S99)*(CACatégorie="Banque")*(CaMode=T102)*CaDébit) ->  | U106: =SUMPRODUCT((CaSem=S99)*(CACatégorie="Banque")*(CaMode=U102)*CaDébit) ->  | V106: =SUMPRODUCT((CaSem=S99)*(CaMode=V102)*CaDébit) ->  | W106: =SUMPRODUCT((CaSem=S99)*(CaMode=W102)*CaDébit) ->  | X106: =SUMPRODUCT((CaSem=S99)*(CaMode=X102)*CaDébit) ->  | Y106: =SUM(T106:X106) ->  | Z106: =(T100+R106)-Y106 -> 
C107: 0 | D107: 52 | O107: 0 | P107: 0
C108: 0 | D108: 52 | O108: 0 | P108: 0
C109: 0 | D109: 52 | O109: 0 | P109: 0 | R109: Semaine N° | T109: TOTAL | U109: Taxi | V109: Location | W109: Publicité
C110: 0 | D110: 52 | O110: 0 | P110: 0 | T110: =SUMPRODUCT((CaSem=S109)*(CaSem>0)*CaCrédit) ->  | U110: =SUMPRODUCT((CaSem=S109)*(CACatégorie=U109)*CaCrédit) ->  | V110: =SUMPRODUCT((CaSem=S109)*(CACatégorie=V109)*CaCrédit) ->  | W110: =SUMPRODUCT((CaSem=S109)*(CACatégorie=W109)*CaCrédit) -> 
C111: 0 | D111: 52 | O111: 0 | P111: 0
C112: 0 | D112: 52 | O112: 0 | P112: 0 | T112: Espèce | U112: Chèque | V112: CB | W112: Virement | X112: Tickets | Y112: vérif
C113: 0 | D113: 52 | O113: 0 | P113: 0 | T113: =SUMPRODUCT((CaSem=S109)*(CaMode="Espèce")*CaCrédit) ->  | U113: =SUMPRODUCT((CaSem=S109)*(CaMode=U112)*CaCrédit) ->  | V113: =SUMPRODUCT((CaSem=S109)*(CaMode=V112)*CaCrédit) ->  | W113: =SUMPRODUCT((CaSem=S109)*(CaMode=W112)*CaCrédit) ->  | X113: =SUMPRODUCT((CaSem=S109)*(CaMode=X112)*CaCrédit) ->  | Y113: =SUM(T113:X114) -> 
C114: 0 | D114: 52 | O114: 0 | P114: 0 | Y114: =SUMPRODUCT((CaSem=S109)*CaRecJour) -> 0
C115: 0 | D115: 52 | O115: 0 | P115: 0 | R115: FdC | T115: Remise esp | U115: Remise chq | V115: Remise CB | W115: Rem Virmt | X115: Tickets | Y115: TOTAL | Z115: Report
C116: 0 | D116: 52 | O116: 0 | P116: 0 | R116: =Z106 ->  | T116: =SUMPRODUCT((CaSem=S109)*(CACatégorie="Banque")*(CaMode=T112)*CaDébit) ->  | U116: =SUMPRODUCT((CaSem=S109)*(CACatégorie="Banque")*(CaMode=U112)*CaDébit) ->  | V116: =SUMPRODUCT((CaSem=S109)*(CaMode=V112)*CaDébit) ->  | W116: =SUMPRODUCT((CaSem=S109)*(CaMode=W112)*CaDébit) ->  | X116: =SUMPRODUCT((CaSem=S109)*(CaMode=X112)*CaDébit) ->  | Y116: =SUM(T116:X116) ->  | Z116: =(T110+R116)-Y116 -> 
C117: 0 | D117: 52 | O117: 0 | P117: 0
C118: 0 | D118: 52 | O118: 0 | P118: 0
C119: 0 | D119: 52 | O119: 0 | P119: 0 | R119: Semaine N° | T119: TOTAL | U119: Taxi | V119: Location | W119: Publicité
C120: 0 | D120: 52 | O120: 0 | P120: 0 | T120: =SUMPRODUCT((CaSem=S119)*(CaSem>0)*CaCrédit) ->  | U120: =SUMPRODUCT((CaSem=S119)*(CACatégorie=U119)*CaCrédit) ->  | V120: =SUMPRODUCT((CaSem=S119)*(CACatégorie=V119)*CaCrédit) ->  | W120: =SUMPRODUCT((CaSem=S119)*(CACatégorie=W119)*CaCrédit) -> 
C121: 0 | D121: 52 | O121: 0 | P121: 0
C122: 0 | D122: 52 | O122: 0 | P122: 0 | T122: Espèce | U122: Chèque | V122: CB | W122: Virement | X122: Tickets | Y122: vérif
C123: 0 | D123: 52 | O123: 0 | P123: 0 | T123: =SUMPRODUCT((CaSem=S119)*(CaMode="Espèce")*CaCrédit) ->  | U123: =SUMPRODUCT((CaSem=S119)*(CaMode=U122)*CaCrédit) ->  | V123: =SUMPRODUCT((CaSem=S119)*(CaMode=V122)*CaCrédit) ->  | W123: =SUMPRODUCT((CaSem=S119)*(CaMode=W122)*CaCrédit) ->  | X123: =SUMPRODUCT((CaSem=S119)*(CaMode=X122)*CaCrédit) ->  | Y123: =SUM(T123:X124) -> 
C124: 0 | D124: 52 | O124: 0 | P124: 0 | Y124: =SUMPRODUCT((CaSem=S119)*CaRecJour) -> 0
C125: 0 | D125: 52 | O125: 0 | P125: 0 | R125: FdC | T125: Remise esp | U125: Remise chq | V125: Remise CB | W125: Rem Virmt | X125: Tickets | Y125: TOTAL | Z125: Report
C126: 0 | D126: 52 | O126: 0 | P126: 0 | R126: =Z116 ->  | T126: =SUMPRODUCT((CaSem=S119)*(CACatégorie="Banque")*(CaMode=T122)*CaDébit) ->  | U126: =SUMPRODUCT((CaSem=S119)*(CACatégorie="Banque")*(CaMode=U122)*CaDébit) ->  | V126: =SUMPRODUCT((CaSem=S119)*(CaMode=V122)*CaDébit) ->  | W126: =SUMPRODUCT((CaSem=S119)*(CaMode=W122)*CaDébit) ->  | X126: =SUMPRODUCT((CaSem=S119)*(CaMode=X122)*CaDébit) ->  | Y126: =SUM(T126:X126) ->  | Z126: =(T120+R126)-Y126 -> 
C127: 0 | D127: 52 | O127: 0 | P127: 0
C128: 0 | D128: 52 | O128: 0 | P128: 0
C129: 0 | D129: 52 | O129: 0 | P129: 0 | R129: Semaine N° | T129: TOTAL | U129: Taxi | V129: Location | W129: Publicité
C130: 0 | D130: 52 | O130: 0 | P130: 0 | T130: =SUMPRODUCT((CaSem=S129)*(CaSem>0)*CaCrédit) ->  | U130: =SUMPRODUCT((CaSem=S129)*(CACatégorie=U129)*CaCrédit) ->  | V130: =SUMPRODUCT((CaSem=S129)*(CACatégorie=V129)*CaCrédit) ->  | W130: =SUMPRODUCT((CaSem=S129)*(CACatégorie=W129)*CaCrédit) -> 
C131: 0 | D131: 52 | O131: 0 | P131: 0
C132: 0 | D132: 52 | O132: 0 | P132: 0 | T132: Espèce | U132: Chèque | V132: CB | W132: Virement | X132: Tickets | Y132: vérif
C133: 0 | D133: 52 | O133: 0 | P133: 0 | T133: =SUMPRODUCT((CaSem=S129)*(CaMode="Espèce")*CaCrédit) ->  | U133: =SUMPRODUCT((CaSem=S129)*(CaMode=U132)*CaCrédit) ->  | V133: =SUMPRODUCT((CaSem=S129)*(CaMode=V132)*CaCrédit) ->  | W133: =SUMPRODUCT((CaSem=S129)*(CaMode=W132)*CaCrédit) ->  | X133: =SUMPRODUCT((CaSem=S129)*(CaMode=X132)*CaCrédit) ->  | Y133: =SUM(T133:X134) -> 
C134: 0 | D134: 52 | O134: 0 | P134: 0 | Y134: =SUMPRODUCT((CaSem=S129)*CaRecJour) -> 0
C135: 0 | D135: 52 | O135: 0 | P135: 0 | R135: FdC | T135: Remise esp | U135: Remise chq | V135: Remise CB | W135: Rem Virmt | X135: Tickets | Y135: TOTAL | Z135: Report
C136: 0 | D136: 52 | O136: 0 | P136: 0 | R136: =Z126 ->  | T136: =SUMPRODUCT((CaSem=S129)*(CACatégorie="Banque")*(CaMode=T132)*CaDébit) ->  | U136: =SUMPRODUCT((CaSem=S129)*(CACatégorie="Banque")*(CaMode=U132)*CaDébit) ->  | V136: =SUMPRODUCT((CaSem=S129)*(CaMode=V132)*CaDébit) ->  | W136: =SUMPRODUCT((CaSem=S129)*(CaMode=W132)*CaDébit) ->  | X136: =SUMPRODUCT((CaSem=S129)*(CaMode=X132)*CaDébit) ->  | Y136: =SUM(T136:X136) ->  | Z136: =(T130+R136)-Y136 -> 
C137: 0 | D137: 52 | E137: =IF(CaJour=0,"",UPPER(TEXT(C137,"mmmm"))) ->  | O137: 0 | P137: 0
C138: =DATE(YEAR(B138),MONTH(B138),DAY(B138)) -> 0 | D138: =INT(MOD(INT((B138-2)/7)+0.6,52+5/28))+1 -> 52 | O138: 0 | P138: 0
C139: 0 | D139: 52 | O139: 0 | P139: 0 | R139: Semaine N° | T139: TOTAL | U139: Taxi | V139: Location | W139: Publicité
C140: 0 | D140: 52 | O140: 0 | P140: 0 | T140: =SUMPRODUCT((CaSem=S139)*(CaSem>0)*CaCrédit) ->  | U140: =SUMPRODUCT((CaSem=S139)*(CACatégorie=U139)*CaCrédit) ->  | V140: =SUMPRODUCT((CaSem=S139)*(CACatégorie=V139)*CaCrédit) ->  | W140: =SUMPRODUCT((CaSem=S139)*(CACatégorie=W139)*CaCrédit) -> 
C141: 0 | D141: 52 | O141: 0 | P141: 0
C142: 0 | D142: 52 | O142: 0 | P142: 0 | T142: Espèce | U142: Chèque | V142: CB | W142: Virement | X142: Tickets | Y142: vérif
C143: 0 | D143: 52 | O143: 0 | P143: 0 | T143: =SUMPRODUCT((CaSem=S139)*(CaMode="Espèce")*CaCrédit) ->  | U143: =SUMPRODUCT((CaSem=S139)*(CaMode=U142)*CaCrédit) ->  | V143: =SUMPRODUCT((CaSem=S139)*(CaMode=V142)*CaCrédit) ->  | W143: =SUMPRODUCT((CaSem=S139)*(CaMode=W142)*CaCrédit) ->  | X143: =SUMPRODUCT((CaSem=S139)*(CaMode=X142)*CaCrédit) ->  | Y143: =SUM(T143:X144) -> 
C144: 0 | D144: 52 | O144: 0 | P144: 0 | Y144: =SUMPRODUCT((CaSem=S139)*CaRecJour) -> 0
C145: 0 | D145: 52 | O145: 0 | P145: 0 | R145: FdC | T145: Remise esp | U145: Remise chq | V145: Remise CB | W145: Rem Virmt | X145: Tickets | Y145: TOTAL | Z145: Report
C146: 0 | D146: 52 | O146: 0 | P146: 0 | R146: =Z136 ->  | T146: =SUMPRODUCT((CaSem=S139)*(CACatégorie="Banque")*(CaMode=T142)*CaDébit) ->  | U146: =SUMPRODUCT((CaSem=S139)*(CACatégorie="Banque")*(CaMode=U142)*CaDébit) ->  | V146: =SUMPRODUCT((CaSem=S139)*(CaMode=V142)*CaDébit) ->  | W146: =SUMPRODUCT((CaSem=S139)*(CaMode=W142)*CaDébit) ->  | X146: =SUMPRODUCT((CaSem=S139)*(CaMode=X142)*CaDébit) ->  | Y146: =SUM(T146:X146) ->  | Z146: =(T140+R146)-Y146 -> 
C147: 0 | D147: 52 | O147: 0 | P147: 0
C148: 0 | D148: 52 | O148: 0 | P148: 0
C149: 0 | D149: 52 | O149: 0 | P149: 0 | R149: Semaine N° | T149: TOTAL | U149: Taxi | V149: Location | W149: Publicité
C150: 0 | D150: 52 | O150: 0 | P150: 0 | T150: =SUMPRODUCT((CaSem=S149)*(CaSem>0)*CaCrédit) ->  | U150: =SUMPRODUCT((CaSem=S149)*(CACatégorie=U149)*CaCrédit) ->  | V150: =SUMPRODUCT((CaSem=S149)*(CACatégorie=V149)*CaCrédit) ->  | W150: =SUMPRODUCT((CaSem=S149)*(CACatégorie=W149)*CaCrédit) -> 
C151: 0 | D151: 52 | O151: 0 | P151: 0
C152: 0 | D152: 52 | O152: 0 | P152: 0 | T152: Espèce | U152: Chèque | V152: CB | W152: Virement | X152: Tickets | Y152: vérif
C153: 0 | D153: 52 | O153: 0 | P153: 0 | T153: =SUMPRODUCT((CaSem=S149)*(CaMode="Espèce")*CaCrédit) ->  | U153: =SUMPRODUCT((CaSem=S149)*(CaMode=U152)*CaCrédit) ->  | V153: =SUMPRODUCT((CaSem=S149)*(CaMode=V152)*CaCrédit) ->  | W153: =SUMPRODUCT((CaSem=S149)*(CaMode=W152)*CaCrédit) ->  | X153: =SUMPRODUCT((CaSem=S149)*(CaMode=X152)*CaCrédit) ->  | Y153: =SUM(T153:X154) -> 
C154: 0 | D154: 52 | O154: 0 | P154: 0 | Y154: =SUMPRODUCT((CaSem=S149)*CaRecJour) -> 0
C155: 0 | D155: 52 | O155: 0 | P155: 0 | R155: FdC | T155: Remise esp | U155: Remise chq | V155: Remise CB | W155: Rem Virmt | X155: Tickets | Y155: TOTAL | Z155: Report
C156: 0 | D156: 52 | O156: 0 | P156: 0 | R156: =Z146 ->  | T156: =SUMPRODUCT((CaSem=S149)*(CACatégorie="Banque")*(CaMode=T152)*CaDébit) ->  | U156: =SUMPRODUCT((CaSem=S149)*(CACatégorie="Banque")*(CaMode=U152)*CaDébit) ->  | V156: =SUMPRODUCT((CaSem=S149)*(CaMode=V152)*CaDébit) ->  | W156: =SUMPRODUCT((CaSem=S149)*(CaMode=W152)*CaDébit) ->  | X156: =SUMPRODUCT((CaSem=S149)*(CaMode=X152)*CaDébit) ->  | Y156: =SUM(T156:X156) ->  | Z156: =(T150+R156)-Y156 -> 
C157: 0 | D157: 52 | O157: =IF(AND((CaJour=B157),(CACatégorie="Résultat")),IF(B156=B157,M156,0)+IF(B155=B157,M155,0)+IF(B154=B157,M154,0)+IF(B153=B157,M153,0)+IF(B152=B157,M152,0)+IF(B151=B157,M151,0)+IF(B150=B157,M150,0)+IF(B149=B157,M149,0)+IF(B148=B157,M148,0)+IF(B147=B157,M147,0)+IF(B146=B157,M146,0)+IF(B145=B157,M145,0)+IF(B144=B157,M144,0)+IF(B143=B157,M143,0)+IF(B142=B157,M142,0)+IF(B141=B157,M141,0)+IF(B140=B157,M140,0)+IF(B139=B157,M139,0)+IF(B138=B157,M138,0)+IF(B137=B157,M137,0),0) -> 0 | P157: =IF(AND((CaJour=B157),(CACatégorie="Résultat")),IF(B156=B157,N156,0)+IF(B155=B157,N155,0)+IF(B154=B157,N154,0)+IF(B153=B157,N153,0)+IF(B152=B157,N152,0)+IF(B151=B157,N151,0)+IF(B150=B157,N150,0)+IF(B149=B157,N149,0)+IF(B148=B157,N148,0)+IF(B147=B157,N147,0)+IF(B146=B157,N146,0)+IF(B145=B157,N145,0)+IF(B144=B157,N144,0)+IF(B143=B157,N143,0)+IF(B142=B157,N142,0)+IF(B141=B157,N141,0)+IF(B140=B157,N140,0)+IF(B139=B157,N139,0)+IF(B138=B157,N138,0)+IF(B137=B157,N137,0),0) -> 0
C158: 0 | D158: 52 | O158: 0 | P158: 0
C159: 0 | D159: 52 | O159: 0 | P159: 0 | R159: Semaine N° | T159: TOTAL | U159: Taxi | V159: Location | W159: Publicité
C160: 0 | D160: 52 | O160: 0 | P160: 0 | T160: =SUMPRODUCT((CaSem=S159)*(CaSem>0)*CaCrédit) ->  | U160: =SUMPRODUCT((CaSem=S159)*(CACatégorie=U159)*CaCrédit) ->  | V160: =SUMPRODUCT((CaSem=S159)*(CACatégorie=V159)*CaCrédit) ->  | W160: =SUMPRODUCT((CaSem=S159)*(CACatégorie=W159)*CaCrédit) -> 
C161: 0 | D161: 52 | O161: 0 | P161: 0
C162: 0 | D162: 52 | O162: 0 | P162: 0 | T162: Espèce | U162: Chèque | V162: CB | W162: Virement | X162: Tickets | Y162: vérif
C163: 0 | D163: 52 | O163: 0 | P163: 0 | T163: =SUMPRODUCT((CaSem=S159)*(CaMode="Espèce")*CaCrédit) ->  | U163: =SUMPRODUCT((CaSem=S159)*(CaMode=U162)*CaCrédit) ->  | V163: =SUMPRODUCT((CaSem=S159)*(CaMode=V162)*CaCrédit) ->  | W163: =SUMPRODUCT((CaSem=S159)*(CaMode=W162)*CaCrédit) ->  | X163: =SUMPRODUCT((CaSem=S159)*(CaMode=X162)*CaCrédit) ->  | Y163: =SUM(T163:X164) -> 
C164: 0 | D164: 52 | O164: 0 | P164: 0 | Y164: =SUMPRODUCT((CaSem=S159)*CaRecJour) -> 0
C165: 0 | D165: 52 | O165: 0 | P165: 0 | R165: FdC | T165: Remise esp | U165: Remise chq | V165: Remise CB | W165: Rem Virmt | X165: Tickets | Y165: TOTAL | Z165: Report
C166: 0 | D166: 52 | O166: 0 | P166: 0 | R166: =Z156 ->  | T166: =SUMPRODUCT((CaSem=S159)*(CACatégorie="Banque")*(CaMode=T162)*CaDébit) ->  | U166: =SUMPRODUCT((CaSem=S159)*(CACatégorie="Banque")*(CaMode=U162)*CaDébit) ->  | V166: =SUMPRODUCT((CaSem=S159)*(CaMode=V162)*CaDébit) ->  | W166: =SUMPRODUCT((CaSem=S159)*(CaMode=W162)*CaDébit) ->  | X166: =SUMPRODUCT((CaSem=S159)*(CaMode=X162)*CaDébit) ->  | Y166: =SUM(T166:X166) ->  | Z166: =(T160+R166)-Y166 -> 
C167: 0 | D167: 52 | O167: 0 | P167: 0
C168: 0 | D168: 52 | O168: 0 | P168: 0
C169: 0 | D169: 52 | O169: 0 | P169: 0 | R169: Semaine N° | T169: TOTAL | U169: Taxi | V169: Location | W169: Publicité
C170: 0 | D170: 52 | O170: 0 | P170: 0 | T170: =SUMPRODUCT((CaSem=S169)*(CaSem>0)*CaCrédit) ->  | U170: =SUMPRODUCT((CaSem=S169)*(CACatégorie=U169)*CaCrédit) ->  | V170: =SUMPRODUCT((CaSem=S169)*(CACatégorie=V169)*CaCrédit) ->  | W170: =SUMPRODUCT((CaSem=S169)*(CACatégorie=W169)*CaCrédit) -> 
C171: 0 | D171: 52 | O171: 0 | P171: 0
C172: 0 | D172: 52 | O172: 0 | P172: 0 | T172: Espèce | U172: Chèque | V172: CB | W172: Virement | X172: Tickets | Y172: vérif
C173: 0 | D173: 52 | O173: 0 | P173: 0 | T173: =SUMPRODUCT((CaSem=S169)*(CaMode="Espèce")*CaCrédit) ->  | U173: =SUMPRODUCT((CaSem=S169)*(CaMode=U172)*CaCrédit) ->  | V173: =SUMPRODUCT((CaSem=S169)*(CaMode=V172)*CaCrédit) ->  | W173: =SUMPRODUCT((CaSem=S169)*(CaMode=W172)*CaCrédit) ->  | X173: =SUMPRODUCT((CaSem=S169)*(CaMode=X172)*CaCrédit) ->  | Y173: =SUM(T173:X174) -> 
C174: 0 | D174: 52 | O174: 0 | P174: 0 | Y174: =SUMPRODUCT((CaSem=S169)*CaRecJour) -> 0
C175: 0 | D175: 52 | O175: 0 | P175: 0 | R175: FdC | T175: Remise esp | U175: Remise chq | V175: Remise CB | W175: Rem Virmt | X175: Tickets | Y175: TOTAL | Z175: Report
C176: 0 | D176: 52 | O176: 0 | P176: 0 | R176: =Z166 ->  | T176: =SUMPRODUCT((CaSem=S169)*(CACatégorie="Banque")*(CaMode=T172)*CaDébit) ->  | U176: =SUMPRODUCT((CaSem=S169)*(CACatégorie="Banque")*(CaMode=U172)*CaDébit) ->  | V176: =SUMPRODUCT((CaSem=S169)*(CaMode=V172)*CaDébit) ->  | W176: =SUMPRODUCT((CaSem=S169)*(CaMode=W172)*CaDébit) ->  | X176: =SUMPRODUCT((CaSem=S169)*(CaMode=X172)*CaDébit) ->  | Y176: =SUM(T176:X176) ->  | Z176: =(T170+R176)-Y176 -> 
C177: 0 | D177: 52 | O177: 0 | P177: 0
C178: 0 | D178: 52 | O178: 0 | P178: 0
C179: 0 | D179: 52 | O179: 0 | P179: 0 | R179: Semaine N° | T179: TOTAL | U179: Taxi | V179: Location | W179: Publicité
C180: 0 | D180: 52 | O180: 0 | P180: 0 | T180: =SUMPRODUCT((CaSem=S179)*(CaSem>0)*CaCrédit) ->  | U180: =SUMPRODUCT((CaSem=S179)*(CACatégorie=U179)*CaCrédit) ->  | V180: =SUMPRODUCT((CaSem=S179)*(CACatégorie=V179)*CaCrédit) ->  | W180: =SUMPRODUCT((CaSem=S179)*(CACatégorie=W179)*CaCrédit) -> 
C181: 0 | D181: 52 | O181: 0 | P181: 0
C182: 0 | D182: 52 | O182: 0 | P182: 0 | T182: Espèce | U182: Chèque | V182: CB | W182: Virement | X182: Tickets | Y182: vérif
C183: 0 | D183: 52 | O183: 0 | P183: 0 | T183: =SUMPRODUCT((CaSem=S179)*(CaMode="Espèce")*CaCrédit) ->  | U183: =SUMPRODUCT((CaSem=S179)*(CaMode=U182)*CaCrédit) ->  | V183: =SUMPRODUCT((CaSem=S179)*(CaMode=V182)*CaCrédit) ->  | W183: =SUMPRODUCT((CaSem=S179)*(CaMode=W182)*CaCrédit) ->  | X183: =SUMPRODUCT((CaSem=S179)*(CaMode=X182)*CaCrédit) ->  | Y183: =SUM(T183:X184) -> 
C184: 0 | D184: 52 | O184: 0 | P184: 0 | Y184: =SUMPRODUCT((CaSem=S179)*CaRecJour) -> 0
C185: 0 | D185: 52 | O185: 0 | P185: 0 | R185: FdC | T185: Remise esp | U185: Remise chq | V185: Remise CB | W185: Rem Virmt | X185: Tickets | Y185: TOTAL | Z185: Report
C186: 0 | D186: 52 | O186: 0 | P186: 0 | R186: =Z176 ->  | T186: =SUMPRODUCT((CaSem=S179)*(CACatégorie="Banque")*(CaMode=T182)*CaDébit) ->  | U186: =SUMPRODUCT((CaSem=S179)*(CACatégorie="Banque")*(CaMode=U182)*CaDébit) ->  | V186: =SUMPRODUCT((CaSem=S179)*(CaMode=V182)*CaDébit) ->  | W186: =SUMPRODUCT((CaSem=S179)*(CaMode=W182)*CaDébit) ->  | X186: =SUMPRODUCT((CaSem=S179)*(CaMode=X182)*CaDébit) ->  | Y186: =SUM(T186:X186) ->  | Z186: =(T180+R186)-Y186 -> 
C187: 0 | D187: 52 | O187: 0 | P187: 0
C188: 0 | D188: 52 | O188: 0 | P188: 0
C189: 0 | D189: 52 | O189: 0 | P189: 0 | R189: Semaine N° | T189: TOTAL | U189: Taxi | V189: Location | W189: Publicité
C190: 0 | D190: 52 | O190: 0 | P190: 0 | T190: =SUMPRODUCT((CaSem=S189)*(CaSem>0)*CaCrédit) ->  | U190: =SUMPRODUCT((CaSem=S189)*(CACatégorie=U189)*CaCrédit) ->  | V190: =SUMPRODUCT((CaSem=S189)*(CACatégorie=V189)*CaCrédit) ->  | W190: =SUMPRODUCT((CaSem=S189)*(CACatégorie=W189)*CaCrédit) -> 
C191: 0 | D191: 52 | O191: 0 | P191: 0
C192: 0 | D192: 52 | O192: 0 | P192: 0 | T192: Espèce | U192: Chèque | V192: CB | W192: Virement | X192: Tickets | Y192: vérif
C193: 0 | D193: 52 | O193: 0 | P193: 0 | T193: =SUMPRODUCT((CaSem=S189)*(CaMode="Espèce")*CaCrédit) ->  | U193: =SUMPRODUCT((CaSem=S189)*(CaMode=U192)*CaCrédit) ->  | V193: =SUMPRODUCT((CaSem=S189)*(CaMode=V192)*CaCrédit) ->  | W193: =SUMPRODUCT((CaSem=S189)*(CaMode=W192)*CaCrédit) ->  | X193: =SUMPRODUCT((CaSem=S189)*(CaMode=X192)*CaCrédit) ->  | Y193: =SUM(T193:X194) -> 
C194: 0 | D194: 52 | O194: 0 | P194: 0 | Y194: =SUMPRODUCT((CaSem=S189)*CaRecJour) -> 0
C195: 0 | D195: 52 | O195: 0 | P195: 0 | R195: FdC | T195: Remise esp | U195: Remise chq | V195: Remise CB | W195: Rem Virmt | X195: Tickets | Y195: TOTAL | Z195: Report
C196: 0 | D196: 52 | O196: 0 | P196: 0 | R196: =Z186 ->  | T196: =SUMPRODUCT((CaSem=S189)*(CACatégorie="Banque")*(CaMode=T192)*CaDébit) ->  | U196: =SUMPRODUCT((CaSem=S189)*(CACatégorie="Banque")*(CaMode=U192)*CaDébit) ->  | V196: =SUMPRODUCT((CaSem=S189)*(CaMode=V192)*CaDébit) ->  | W196: =SUMPRODUCT((CaSem=S189)*(CaMode=W192)*CaDébit) ->  | X196: =SUMPRODUCT((CaSem=S189)*(CaMode=X192)*CaDébit) ->  | Y196: =SUM(T196:X196) ->  | Z196: =(T190+R196)-Y196 -> 
C197: 0 | D197: 52 | O197: 0 | P197: 0
C198: 0 | D198: 52 | O198: 0 | P198: 0
C199: 0 | D199: 52 | O199: 0 | P199: 0 | R199: Semaine N° | T199: TOTAL | U199: Taxi | V199: Location | W199: Publicité
C200: 0 | D200: 52 | O200: 0 | P200: 0 | T200: =SUMPRODUCT((CaSem=S199)*(CaSem>0)*CaCrédit) ->  | U200: =SUMPRODUCT((CaSem=S199)*(CACatégorie=U199)*CaCrédit) ->  | V200: =SUMPRODUCT((CaSem=S199)*(CACatégorie=V199)*CaCrédit) ->  | W200: =SUMPRODUCT((CaSem=S199)*(CACatégorie=W199)*CaCrédit) -> 
C201: 0 | D201: 52 | E201: =IF(CaJour=0,"",UPPER(TEXT(C201,"mmmm"))) ->  | O201: 0 | P201: 0
C202: =DATE(YEAR(B202),MONTH(B202),DAY(B202)) -> 0 | D202: =INT(MOD(INT((B202-2)/7)+0.6,52+5/28))+1 -> 52 | O202: 0 | P202: 0 | T202: Espèce | U202: Chèque | V202: CB | W202: Virement | X202: Tickets | Y202: vérif
C203: 0 | D203: 52 | O203: 0 | P203: 0 | T203: =SUMPRODUCT((CaSem=S199)*(CaMode="Espèce")*CaCrédit) ->  | U203: =SUMPRODUCT((CaSem=S199)*(CaMode=U202)*CaCrédit) ->  | V203: =SUMPRODUCT((CaSem=S199)*(CaMode=V202)*CaCrédit) ->  | W203: =SUMPRODUCT((CaSem=S199)*(CaMode=W202)*CaCrédit) ->  | X203: =SUMPRODUCT((CaSem=S199)*(CaMode=X202)*CaCrédit) ->  | Y203: =SUM(T203:X204) -> 
... 350 more rows

Sheet BANQUE
J1: B A N Q U E | Z1: BANQUE RECAPITULATIF ANNUEL
N6: =TODAY() -> 2013-12-08 | T6: =SUM(M9:M17)-SUM(N9:N17) -> 400
B7: DATE | C7: JOUR | D7: SEMAINE | E7: MOIS | F7: CATEGORIE | G7: OBJET | H7: CODES CLIENT | I7: N° Document | J7: DESIGNATION | K7: Type de PAIEMENT | L7: Valid | M7: CREDIT | N7: DEBIT | S7: Prévisionnel | T7: Validé | Y7: JANVIER | Z7: FÉVRIER | AA7: MARS | AB7: AVRIL | AC7: MAI | AD7: JUIN | AE7: JUILLET | AF7: AOÛT | AG7: SEPTEMBRE | AH7: OCTOBRE | AI7: NOVEMBRE | AJ7: DÉCEMBRE
C9: =IF(B9=0,0,(DATE(YEAR(B9),MONTH(B9),DAY(B9)))) -> 0 | D9: =INT(MOD(INT((B9-2)/7)+0.6,52+5/28))+1 -> 52 | E9: =IF(C9=0,"",UPPER(TEXT(B9,"mmmm"))) ->  | K9: CB | L9: v | N9: 100 | O9: =IF(L9="v",0,M9-N9) -> 0 | P9: =IF(L9="v",M9-N9,0) -> -100 | Q9: =O9 -> 0 | R9: =P9 -> -100 | S9: =IF(L9="v",0,Q9) -> 0 | T9: =IF(M9="v",0,R9) -> -100 | W9: BANQUE | X9: CREDIT | Y9: =SUMPRODUCT((BQMois=Y7)*(BQValide="v")*BQCrédit) -> 0 | Z9: 0 | AA9: 0 | AB9: 0 | AC9: 0 | AD9: 0 | AE9: 0 | AF9: 0 | AG9: 0 | AH9: 600 | AI9: 0 | AJ9: 0
B10: 2013-10-10 | C10: =IF(B10=0,0,(DATE(YEAR(B10),MONTH(B10),DAY(B10)))) -> 41557 | D10: 41 | E10: =IF(C10=0,"",UPPER(TEXT(B10,"mmmm"))) -> OCTOBRE | G10: Remise | K10: Chèque | L10: v | M10: 50 | O10: 0 | P10: 50 | Q10: =O9+O10 -> 0 | R10: =R9+P10 -> -50 | S10: =IF(Q10=Q9,0,Q10) -> 0 | T10: =IF(R10=R9,0,R10) -> -50
B11: 2013-10-10 | C11: 41557 | D11: 41 | E11: OCTOBRE | G11: Remise | K11: CB | L11: v | M11: 150 | O11: 0 | P11: 150 | Q11: =Q10+O11 -> 0 | R11: =R10+P11 -> 100 | S11: =IF(Q11=Q10,0,Q11) -> 0 | T11: =IF(R11=R10,0,R11) -> 100 | X11: DEBIT | Y11: =SUMPRODUCT((BQMois=Y7)*(BQValide="v")*BQDébit) -> 0 | Z11: 0 | AA11: 0 | AB11: 0 | AC11: 0 | AD11: 0 | AE11: 0 | AF11: 0 | AG11: 0 | AH11: 150 | AI11: 0 | AJ11: 0
B12: 2013-10-15 | C12: 41562 | D12: 42 | E12: OCTOBRE | G12: Factures | K12: Chèque | L12: v | N12: 150 | O12: 0 | P12: -150 | Q12: 0 | R12: -50 | S12: 0 | T12: -50
B13: 2013-10-18 | C13: 41565 | D13: 42 | E13: OCTOBRE | G13: Remise | K13: Espèce | L13: v | M13: 400 | O13: 0 | P13: 400 | Q13: 0 | R13: 350 | S13: 0 | T13: 350 | X13: TOTAL | Y13: =Y9-Y11 -> 0 | Z13: =Z9-Z11 -> 0 | AA13: 0 | AB13: 0 | AC13: 0 | AD13: 0 | AE13: 0 | AF13: 0 | AG13: 0 | AH13: 450 | AI13: 0 | AJ13: 0
B14: 2013-10-18 | C14: 41565 | D14: 42 | E14: OCTOBRE | G14: Remise | K14: Chèque | M14: 100 | O14: 100 | P14: 0 | Q14: 100 | R14: 350 | S14: 100 | T14: 0
B15: 2013-10-21 | C15: 41568 | D15: 43 | E15: OCTOBRE | G15: Remise | K15: Virement | M15: 150 | O15: 150 | P15: 0 | Q15: 250 | R15: 350 | S15: 250 | T15: 0
C16: 0 | D16: 52 | N16: 200 | O16: -200 | P16: 0 | Q16: 50 | R16: 350 | S16: 50 | T16: 0 | V16: PREVISIONNEL | W16: CREDIT | X16: Espèce | Y16: =SUMPRODUCT((BQMois=Y7)*(BQMode="Espèce")*BQCrédit) -> 0 | Z16: 0 | AA16: 0 | AB16: 0 | AC16: 0 | AD16: 0 | AE16: 0 | AF16: 0 | AG16: 0 | AH16: 400 | AI16: 0 | AJ16: 0
C17: 0 | D17: 52 | O17: 0 | P17: 0 | Q17: 50 | R17: 350 | S17: =IF(Q17=Q16,0,Q17) -> 0 | T17: 0 | X17: Chèque | Y17: =SUMPRODUCT((BQMois=Y7)*(BQMode="Chèque")*BQCrédit) -> 0 | Z17: 0 | AA17: 0 | AB17: 0 | AC17: 0 | AD17: 0 | AE17: 0 | AF17: 0 | AG17: 0 | AH17: 150 | AI17: 0 | AJ17: 0
B18: 2013-10-07 | C18: 41554 | D18: 41 | E18: OCTOBRE | O18: 0 | P18: 0 | Q18: =Q17+O18 -> 50 | R18: =R17+P18 -> 350 | S18: =IF(Q18=Q17,0,Q18) -> 0 | T18: =IF(R18=R17,0,R18) -> 0 | X18: CB | Y18: =SUMPRODUCT((BQMois=Y7)*(BQMode="CB")*BQCrédit) -> 0 | Z18: 0 | AA18: 0 | AB18: 0 | AC18: 0 | AD18: 0 | AE18: 0 | AF18: 0 | AG18: 0 | AH18: 150 | AI18: 0 | AJ18: 0
B19: 2013-10-07 | C19: 41554 | D19: 41 | E19: OCTOBRE | O19: 0 | P19: 0 | Q19: =Q18+O19 -> 50 | R19: =R18+P19 -> 350 | S19: 0 | T19: 0 | X19: Virement | Y19: =SUMPRODUCT((BQMois=Y7)*(BQMode="Virement")*BQCrédit) -> 0 | Z19: 0 | AA19: 0 | AB19: 0 | AC19: 0 | AD19: 0 | AE19: 0 | AF19: 0 | AG19: 0 | AH19: 150 | AI19: 0 | AJ19: 0
C20: 0 | D20: 52 | O20: 0 | P20: 0 | Q20: =Q19+O20 -> 50 | R20: =R19+P20 -> 350 | S20: 0 | T20: 0 | X20: TOTAL | Y20: =Y16+Y17+Y18+Y19 -> 0 | Z20: =Z16+Z17+Z18+Z19 -> 0 | AA20: 0 | AB20: 0 | AC20: 0 | AD20: 0 | AE20: 0 | AF20: 0 | AG20: 0 | AH20: 850 | AI20: 0 | AJ20: 0
C21: 0 | D21: 52 | O21: 0 | P21: 0 | Q21: 50 | R21: 350 | S21: 0 | T21: 0 | W21: DEBIT | X21: Espèce | Y21: =SUMPRODUCT((BQMois=Y7)*(BQMode="Espèce")*BQDébit) -> 0 | Z21: 0 | AA21: 0 | AB21: 0 | AC21: 0 | AD21: 0 | AE21: 0 | AF21: 0 | AG21: 0 | AH21: 0 | AI21: 0 | AJ21: 0
C22: 0 | D22: 52 | O22: 0 | P22: 0 | Q22: 50 | R22: 350 | S22: 0 | T22: 0 | X22: Chèque | Y22: =SUMPRODUCT((BQMois=Y7)*(BQMode="Chèque")*BQDébit) -> 0 | Z22: 0 | AA22: 0 | AB22: 0 | AC22: 0 | AD22: 0 | AE22: 0 | AF22: 0 | AG22: 0 | AH22: 150 | AI22: 0 | AJ22: 0
C23: 0 | D23: 52 | O23: 0 | P23: 0 | Q23: 50 | R23: 350 | S23: 0 | T23: 0 | X23: CB | Y23: =SUMPRODUCT((BQMois=Y7)*(BQMode="CB")*BQDébit) -> 0 | Z23: 0 | AA23: 0 | AB23: 0 | AC23: 0 | AD23: 0 | AE23: 0 | AF23: 0 | AG23: 0 | AH23: 0 | AI23: 0 | AJ23: 0
B24: 2013-10-15 | C24: 41562 | D24: 42 | E24: OCTOBRE | G24: Remise | O24: 0 | P24: 0 | Q24: 50 | R24: 350 | S24: 0 | T24: 0 | X24: Virement | Y24: =SUMPRODUCT((BQMois=Y7)*(BQMode="Virement")*BQDébit) -> 0 | Z24: 0 | AA24: 0 | AB24: 0 | AC24: 0 | AD24: 0 | AE24: 0 | AF24: 0 | AG24: 0 | AH24: 0 | AI24: 0 | AJ24: 0
C25: 0 | D25: 52 | O25: 0 | P25: 0 | Q25: 50 | R25: 350 | S25: 0 | T25: 0 | X25: TOTAL | Y25: =Y21+Y22+Y23+Y24 -> 0 | Z25: =Z21+Z22+Z23+Z24 -> 0 | AA25: 0 | AB25: 0 | AC25: 0 | AD25: 0 | AE25: 0 | AF25: 0 | AG25: 0 | AH25: 150 | AI25: 0 | AJ25: 0
C26: 0 | D26: 52 | O26: 0 | P26: 0 | Q26: 50 | R26: 350 | S26: 0 | T26: 0
C27: 0 | D27: 52 | O27: 0 | P27: 0 | Q27: 50 | R27: 350 | S27: 0 | T27: 0 | W27: Vérif crédit - Débit | Y27: =Y20-Y25 -> 0 | Z27: =Z20-Z25 -> 0 | AA27: 0 | AB27: 0 | AC27: 0 | AD27: 0 | AE27: 0 | AF27: 0 | AG27: 0 | AH27: 700 | AI27: 0 | AJ27: 0
C28: 0 | D28: 52 | O28: 0 | P28: 0 | Q28: 50 | R28: 350 | S28: 0 | T28: 0
B29: 2013-10-06 | C29: 41553 | D29: 40 | E29: OCTOBRE | O29: 0 | P29: 0 | Q29: 50 | R29: 350 | S29: 0 | T29: 0
B30: 2013-10-17 | C30: 41564 | D30: 42 | E30: OCTOBRE | G30: Factures | O30: 0 | P30: 0 | Q30: 50 | R30: 350 | S30: 0 | T30: 0
B31: =CAISSE!B39 -> 2013-10-12 | C31: 41559 | D31: 41 | E31: OCTOBRE | G31: Remise | O31: 0 | P31: 0 | Q31: 50 | R31: 350 | S31: 0 | T31: 0
B32: =CAISSE!B40 -> 2013-10-12 | C32: 41559 | D32: 41 | E32: OCTOBRE | G32: Remise | O32: 0 | P32: 0 | Q32: 50 | R32: 350 | S32: 0 | T32: 0
C33: 0 | D33: 52 | O33: 0 | P33: 0 | Q33: 50 | R33: 350 | S33: 0 | T33: 0
C34: 0 | D34: 52 | O34: 0 | P34: 0 | Q34: 50 | R34: 350 | S34: 0 | T34: 0
C35: 0 | D35: 52 | O35: 0 | P35: 0 | Q35: 50 | R35: 350 | S35: 0 | T35: 0
C36: 0 | D36: 52 | O36: 0 | P36: 0 | Q36: 50 | R36: 350 | S36: 0 | T36: 0
C37: 0 | D37: 52 | O37: 0 | P37: 0 | Q37: 50 | R37: 350 | S37: 0 | T37: 0
C38: 0 | D38: 52 | O38: 0 | P38: 0 | Q38: 50 | R38: 350 | S38: 0 | T38: 0
C39: 0 | D39: 52 | O39: 0 | P39: 0 | Q39: 50 | R39: 350 | S39: 0 | T39: 0
C40: 0 | D40: 52 | O40: 0 | P40: 0 | Q40: 50 | R40: 350 | S40: 0 | T40: 0
C41: 0 | D41: 52 | O41: 0 | P41: 0 | Q41: 50 | R41: 350 | S41: 0 | T41: 0
C42: 0 | D42: 52 | O42: 0 | P42: 0 | Q42: 50 | R42: 350 | S42: 0 | T42: 0
C43: 0 | D43: 52 | O43: 0 | P43: 0 | Q43: 50 | R43: 350 | S43: 0 | T43: 0
C44: 0 | D44: 52 | O44: 0 | P44: 0 | Q44: 50 | R44: 350 | S44: 0 | T44: 0
C45: 0 | D45: 52 | O45: 0 | P45: 0 | Q45: 50 | R45: 350 | S45: 0 | T45: 0
C46: 0 | D46: 52 | O46: 0 | P46: 0 | Q46: 50 | R46: 350 | S46: 0 | T46: 0
C47: 0 | D47: 52 | O47: 0 | P47: 0 | Q47: 50 | R47: 350 | S47: 0 | T47: 0
C48: 0 | D48: 52 | O48: 0 | P48: 0 | Q48: 50 | R48: 350 | S48: 0 | T48: 0
C49: 0 | D49: 52 | O49: 0 | P49: 0 | Q49: 50 | R49: 350 | S49: 0 | T49: 0
C50: 0 | D50: 52 | O50: 0 | P50: 0 | Q50: 50 | R50: 350 | S50: 0 | T50: 0
C51: 0 | D51: 52 | O51: 0 | P51: 0 | Q51: 50 | R51: 350 | S51: 0 | T51: 0
C52: 0 | D52: 52 | O52: 0 | P52: 0 | Q52: 50 | R52: 350 | S52: 0 | T52: 0
C53: 0 | D53: 52 | O53: 0 | P53: 0 | Q53: 50 | R53: 350 | S53: 0 | T53: 0
C54: 0 | D54: 52 | O54: 0 | P54: 0 | Q54: 50 | R54: 350 | S54: 0 | T54: 0
C55: 0 | D55: 52 | O55: 0 | P55: 0 | Q55: 50 | R55: 350 | S55: 0 | T55: 0
C56: 0 | D56: 52 | O56: 0 | P56: 0 | Q56: 50 | R56: 350 | S56: 0 | T56: 0
C57: 0 | D57: 52 | O57: 0 | P57: 0 | Q57: 50 | R57: 350 | S57: 0 | T57: 0
C58: 0 | D58: 52 | O58: 0 | P58: 0 | Q58: 50 | R58: 350 | S58: 0 | T58: 0
C59: 0 | D59: 52 | O59: 0 | P59: 0 | Q59: 50 | R59: 350 | S59: 0 | T59: 0
C60: 0 | D60: 52 | O60: 0 | P60: 0 | Q60: 50 | R60: 350 | S60: 0 | T60: 0
C61: 0 | D61: 52 | O61: 0 | P61: 0 | Q61: 50 | R61: 350 | S61: 0 | T61: 0
C62: 0 | D62: 52 | O62: 0 | P62: 0 | Q62: 50 | R62: 350 | S62: 0 | T62: 0
C63: 0 | D63: 52 | O63: 0 | P63: 0 | Q63: 50 | R63: 350 | S63: 0 | T63: 0
C64: 0 | D64: 52 | O64: 0 | P64: 0 | Q64: 50 | R64: 350 | S64: 0 | T64: 0
C65: 0 | D65: 52 | O65: 0 | P65: 0 | Q65: 50 | R65: 350 | S65: 0 | T65: 0
C66: 0 | D66: 52 | O66: 0 | P66: 0 | Q66: 50 | R66: 350 | S66: 0 | T66: 0
C67: 0 | D67: 52 | O67: 0 | P67: 0 | Q67: 50 | R67: 350 | S67: 0 | T67: 0
C68: 0 | D68: 52 | O68: 0 | P68: 0 | Q68: 50 | R68: 350 | S68: 0 | T68: 0
C69: 0 | D69: 52 | O69: 0 | P69: 0 | Q69: 50 | R69: 350 | S69: 0 | T69: 0
C70: 0 | D70: 52 | O70: 0 | P70: 0 | Q70: 50 | R70: 350 | S70: 0 | T70: 0
C71: 0 | D71: 52 | O71: 0 | P71: 0 | Q71: 50 | R71: 350 | S71: 0 | T71: 0
C72: 0 | D72: 52 | O72: 0 | P72: 0 | Q72: 50 | R72: 350 | S72: 0 | T72: 0
C73: 0 | D73: =INT(MOD(INT((B73-2)/7)+0.6,52+5/28))+1 -> 52 | O73: =IF(L73="v",0,M73-N73) -> 0 | P73: =IF(L73="v",M73-N73,0) -> 0 | Q73: 50 | R73: 350 | S73: 0 | T73: 0
C74: =IF(B74=0,0,(DATE(YEAR(B74),MONTH(B74),DAY(B74)))) -> 0 | D74: 52 | E74: =IF(C74=0,"",UPPER(TEXT(B74,"mmmm"))) ->  | O74: 0 | P74: 0 | Q74: 50 | R74: 350 | S74: 0 | T74: 0
C75: 0 | D75: 52 | O75: 0 | P75: 0 | Q75: 50 | R75: 350 | S75: 0 | T75: 0
C76: 0 | D76: 52 | O76: 0 | P76: 0 | Q76: 50 | R76: 350 | S76: 0 | T76: 0
C77: 0 | D77: 52 | O77: 0 | P77: 0 | Q77: 50 | R77: 350 | S77: 0 | T77: 0
C78: 0 | D78: 52 | O78: 0 | P78: 0 | Q78: 50 | R78: 350 | S78: 0 | T78: 0
C79: 0 | D79: 52 | O79: 0 | P79: 0 | Q79: 50 | R79: 350 | S79: 0 | T79: 0
C80: 0 | D80: 52 | O80: 0 | P80: 0 | Q80: 50 | R80: 350 | S80: 0 | T80: 0
C81: 0 | D81: 52 | O81: 0 | P81: 0 | Q81: 50 | R81: 350 | S81: 0 | T81: 0
C82: 0 | D82: 52 | O82: 0 | P82: 0 | Q82: 50 | R82: 350 | S82: =IF(Q82=Q81,0,Q82) -> 0 | T82: =IF(R82=R81,0,R82) -> 0
C83: 0 | D83: 52 | O83: 0 | P83: 0 | Q83: 50 | R83: 350 | S83: 0 | T83: 0
C84: 0 | D84: 52 | O84: 0 | P84: 0 | Q84: =Q83+O84 -> 50 | R84: =R83+P84 -> 350 | S84: 0 | T84: 0
C85: 0 | D85: 52 | O85: 0 | P85: 0 | Q85: 50 | R85: 350 | S85: 0 | T85: 0
C86: 0 | D86: 52 | O86: 0 | P86: 0 | Q86: 50 | R86: 350 | S86: 0 | T86: 0
C87: 0 | D87: 52 | O87: 0 | P87: 0 | Q87: 50 | R87: 350 | S87: 0 | T87: 0
C88: 0 | D88: 52 | O88: 0 | P88: 0 | Q88: 50 | R88: 350 | S88: 0 | T88: 0
C89: 0 | D89: 52 | O89: 0 | P89: 0 | Q89: 50 | R89: 350 | S89: 0 | T89: 0
C90: 0 | D90: 52 | O90: 0 | P90: 0 | Q90: 50 | R90: 350 | S90: 0 | T90: 0
C91: 0 | D91: 52 | O91: 0 | P91: 0 | Q91: 50 | R91: 350 | S91: 0 | T91: 0
C92: 0 | D92: 52 | O92: 0 | P92: 0 | Q92: 50 | R92: 350 | S92: 0 | T92: 0
C93: 0 | D93: 52 | O93: 0 | P93: 0 | Q93: 50 | R93: 350 | S93: 0 | T93: 0
C94: 0 | D94: 52 | O94: 0 | P94: 0 | Q94: 50 | R94: 350 | S94: 0 | T94: 0
C95: 0 | D95: 52 | O95: 0 | P95: 0 | Q95: 50 | R95: 350 | S95: 0 | T95: 0
C96: 0 | D96: 52 | O96: 0 | P96: 0 | Q96: 50 | R96: 350 | S96: 0 | T96: 0
C97: 0 | D97: 52 | O97: 0 | P97: 0 | Q97: 50 | R97: 350 | S97: 0 | T97: 0
C98: 0 | D98: 52 | O98: 0 | P98: 0 | Q98: 50 | R98: 350 | S98: 0 | T98: 0
C99: 0 | D99: 52 | O99: 0 | P99: 0 | Q99: 50 | R99: 350 | S99: 0 | T99: 0
C100: 0 | D100: 52 | O100: 0 | P100: 0 | Q100: 50 | R100: 350 | S100: 0 | T100: 0
C101: 0 | D101: 52 | O101: 0 | P101: 0 | Q101: 50 | R101: 350 | S101: 0 | T101: 0
C102: 0 | D102: 52 | O102: 0 | P102: 0 | Q102: 50 | R102: 350 | S102: 0 | T102: 0
C103: 0 | D103: 52 | O103: 0 | P103: 0 | Q103: 50 | R103: 350 | S103: 0 | T103: 0
C104: 0 | D104: 52 | O104: 0 | P104: 0 | Q104: 50 | R104: 350 | S104: 0 | T104: 0
C105: 0 | D105: 52 | O105: 0 | P105: 0 | Q105: 50 | R105: 350 | S105: 0 | T105: 0
C106: 0 | D106: 52 | O106: 0 | P106: 0 | Q106: 50 | R106: 350 | S106: 0 | T106: 0
C107: 0 | D107: 52 | O107: 0 | P107: 0 | Q107: 50 | R107: 350 | S107: 0 | T107: 0
C108: 0 | D108: 52 | O108: 0 | P108: 0 | Q108: 50 | R108: 350 | S108: 0 | T108: 0
C109: 0 | D109: 52 | O109: 0 | P109: 0 | Q109: 50 | R109: 350 | S109: 0 | T109: 0
C110: 0 | D110: 52 | O110: 0 | P110: 0 | Q110: 50 | R110: 350 | S110: 0 | T110: 0
C111: 0 | D111: 52 | O111: 0 | P111: 0 | Q111: 50 | R111: 350 | S111: 0 | T111: 0
C112: 0 | D112: 52 | O112: 0 | P112: 0 | Q112: 50 | R112: 350 | S112: 0 | T112: 0
C113: 0 | D113: 52 | O113: 0 | P113: 0 | Q113: 50 | R113: 350 | S113: 0 | T113: 0
C114: 0 | D114: 52 | O114: 0 | P114: 0 | Q114: 50 | R114: 350 | S114: 0 | T114: 0
C115: 0 | D115: 52 | O115: 0 | P115: 0 | Q115: 50 | R115: 350 | S115: 0 | T115: 0
C116: 0 | D116: 52 | O116: 0 | P116: 0 | Q116: 50 | R116: 350 | S116: 0 | T116: 0
C117: 0 | D117: 52 | O117: 0 | P117: 0 | Q117: 50 | R117: 350 | S117: 0 | T117: 0
C118: 0 | D118: 52 | O118: 0 | P118: 0 | Q118: 50 | R118: 350 | S118: 0 | T118: 0
C119: 0 | D119: 52 | O119: 0 | P119: 0 | Q119: 50 | R119: 350 | S119: 0 | T119: 0
C120: 0 | D120: 52 | O120: 0 | P120: 0 | Q120: 50 | R120: 350 | S120: 0 | T120: 0
C121: 0 | D121: 52 | O121: 0 | P121: 0 | Q121: 50 | R121: 350 | S121: 0 | T121: 0
C122: 0 | D122: 52 | O122: 0 | P122: 0 | Q122: 50 | R122: 350 | S122: 0 | T122: 0
C123: 0 | D123: 52 | O123: 0 | P123: 0 | Q123: 50 | R123: 350 | S123: 0 | T123: 0
C124: 0 | D124: 52 | O124: 0 | P124: 0 | Q124: 50 | R124: 350 | S124: 0 | T124: 0
C125: 0 | D125: 52 | O125: 0 | P125: 0 | Q125: 50 | R125: 350 | S125: 0 | T125: 0
C126: 0 | D126: 52 | O126: 0 | P126: 0 | Q126: 50 | R126: 350 | S126: 0 | T126: 0
C127: 0 | D127: 52 | O127: 0 | P127: 0 | Q127: 50 | R127: 350 | S127: 0 | T127: 0
C128: 0 | D128: 52 | O128: 0 | P128: 0 | Q128: 50 | R128: 350 | S128: 0 | T128: 0
C129: 0 | D129: 52 | O129: 0 | P129: 0 | Q129: 50 | R129: 350 | S129: 0 | T129: 0
C130: 0 | D130: 52 | O130: 0 | P130: 0 | Q130: 50 | R130: 350 | S130: 0 | T130: 0
C131: 0 | D131: 52 | O131: 0 | P131: 0 | Q131: 50 | R131: 350 | S131: 0 | T131: 0
C132: 0 | D132: 52 | O132: 0 | P132: 0 | Q132: 50 | R132: 350 | S132: 0 | T132: 0
C133: 0 | D133: 52 | O133: 0 | P133: 0 | Q133: 50 | R133: 350 | S133: 0 | T133: 0
C134: 0 | D134: 52 | O134: 0 | P134: 0 | Q134: 50 | R134: 350 | S134: 0 | T134: 0
C135: 0 | D135: 52 | O135: 0 | P135: 0 | Q135: 50 | R135: 350 | S135: 0 | T135: 0
C136: 0 | D136: 52 | O136: 0 | P136: 0 | Q136: 50 | R136: 350 | S136: 0 | T136: 0
C137: 0 | D137: =INT(MOD(INT((B137-2)/7)+0.6,52+5/28))+1 -> 52 | O137: =IF(L137="v",0,M137-N137) -> 0 | P137: =IF(L137="v",M137-N137,0) -> 0 | Q137: 50 | R137: 350 | S137: 0 | T137: 0
C138: =IF(B138=0,0,(DATE(YEAR(B138),MONTH(B138),DAY(B138)))) -> 0 | D138: 52 | E138: =IF(C138=0,"",UPPER(TEXT(B138,"mmmm"))) ->  | O138: 0 | P138: 0 | Q138: 50 | R138: 350 | S138: 0 | T138: 0
C139: 0 | D139: 52 | O139: 0 | P139: 0 | Q139: 50 | R139: 350 | S139: 0 | T139: 0
C140: 0 | D140: 52 | O140: 0 | P140: 0 | Q140: 50 | R140: 350 | S140: 0 | T140: 0
C141: 0 | D141: 52 | O141: 0 | P141: 0 | Q141: 50 | R141: 350 | S141: 0 | T141: 0
C142: 0 | D142: 52 | O142: 0 | P142: 0 | Q142: 50 | R142: 350 | S142: 0 | T142: 0
C143: 0 | D143: 52 | O143: 0 | P143: 0 | Q143: 50 | R143: 350 | S143: 0 | T143: 0
C144: 0 | D144: 52 | O144: 0 | P144: 0 | Q144: 50 | R144: 350 | S144: 0 | T144: 0
C145: 0 | D145: 52 | O145: 0 | P145: 0 | Q145: 50 | R145: 350 | S145: 0 | T145: 0
C146: 0 | D146: 52 | O146: 0 | P146: 0 | Q146: 50 | R146: 350 | S146: =IF(Q146=Q145,0,Q146) -> 0 | T146: =IF(R146=R145,0,R146) -> 0
C147: 0 | D147: 52 | O147: 0 | P147: 0 | Q147: 50 | R147: 350 | S147: 0 | T147: 0
C148: 0 | D148: 52 | O148: 0 | P148: 0 | Q148: =Q147+O148 -> 50 | R148: =R147+P148 -> 350 | S148: 0 | T148: 0
C149: 0 | D149: 52 | O149: 0 | P149: 0 | Q149: 50 | R149: 350 | S149: 0 | T149: 0
C150: 0 | D150: 52 | O150: 0 | P150: 0 | Q150: 50 | R150: 350 | S150: 0 | T150: 0
C151: 0 | D151: 52 | O151: 0 | P151: 0 | Q151: 50 | R151: 350 | S151: 0 | T151: 0
C152: 0 | D152: 52 | O152: 0 | P152: 0 | Q152: 50 | R152: 350 | S152: 0 | T152: 0
C153: 0 | D153: 52 | O153: 0 | P153: 0 | Q153: 50 | R153: 350 | S153: 0 | T153: 0
C154: 0 | D154: 52 | O154: 0 | P154: 0 | Q154: 50 | R154: 350 | S154: 0 | T154: 0
C155: 0 | D155: 52 | O155: 0 | P155: 0 | Q155: 50 | R155: 350 | S155: 0 | T155: 0
C156: 0 | D156: 52 | O156: 0 | P156: 0 | Q156: 50 | R156: 350 | S156: 0 | T156: 0
C157: 0 | D157: 52 | O157: 0 | P157: 0 | Q157: 50 | R157: 350 | S157: 0 | T157: 0
C158: 0 | D158: 52 | O158: 0 | P158: 0 | Q158: 50 | R158: 350 | S158: 0 | T158: 0
C159: 0 | D159: 52 | O159: 0 | P159: 0 | Q159: 50 | R159: 350 | S159: 0 | T159: 0
C160: 0 | D160: 52 | O160: 0 | P160: 0 | Q160: 50 | R160: 350 | S160: 0 | T160: 0
C161: 0 | D161: 52 | O161: 0 | P161: 0 | Q161: 50 | R161: 350 | S161: 0 | T161: 0
C162: 0 | D162: 52 | O162: 0 | P162: 0 | Q162: 50 | R162: 350 | S162: 0 | T162: 0
C163: 0 | D163: 52 | O163: 0 | P163: 0 | Q163: 50 | R163: 350 | S163: 0 | T163: 0
C164: 0 | D164: 52 | O164: 0 | P164: 0 | Q164: 50 | R164: 350 | S164: 0 | T164: 0
C165: 0 | D165: 52 | O165: 0 | P165: 0 | Q165: 50 | R165: 350 | S165: 0 | T165: 0
C166: 0 | D166: 52 | O166: 0 | P166: 0 | Q166: 50 | R166: 350 | S166: 0 | T166: 0
C167: 0 | D167: 52 | O167: 0 | P167: 0 | Q167: 50 | R167: 350 | S167: 0 | T167: 0
C168: 0 | D168: 52 | O168: 0 | P168: 0 | Q168: 50 | R168: 350 | S168: 0 | T168: 0
C169: 0 | D169: 52 | O169: 0 | P169: 0 | Q169: 50 | R169: 350 | S169: 0 | T169: 0
C170: 0 | D170: 52 | O170: 0 | P170: 0 | Q170: 50 | R170: 350 | S170: 0 | T170: 0
C171: 0 | D171: 52 | O171: 0 | P171: 0 | Q171: 50 | R171: 350 | S171: 0 | T171: 0
C172: 0 | D172: 52 | O172: 0 | P172: 0 | Q172: 50 | R172: 350 | S172: 0 | T172: 0
C173: 0 | D173: 52 | O173: 0 | P173: 0 | Q173: 50 | R173: 350 | S173: 0 | T173: 0
C174: 0 | D174: 52 | O174: 0 | P174: 0 | Q174: 50 | R174: 350 | S174: 0 | T174: 0
C175: 0 | D175: 52 | O175: 0 | P175: 0 | Q175: 50 | R175: 350 | S175: 0 | T175: 0
C176: 0 | D176: 52 | O176: 0 | P176: 0 | Q176: 50 | R176: 350 | S176: 0 | T176: 0
C177: 0 | D177: 52 | O177: 0 | P177: 0 | Q177: 50 | R177: 350 | S177: 0 | T177: 0
C178: 0 | D178: 52 | O178: 0 | P178: 0 | Q178: 50 | R178: 350 | S178: 0 | T178: 0
C179: 0 | D179: 52 | O179: 0 | P179: 0 | Q179: 50 | R179: 350 | S179: 0 | T179: 0
C180: 0 | D180: 52 | O180: 0 | P180: 0 | Q180: 50 | R180: 350 | S180: 0 | T180: 0
C181: 0 | D181: 52 | O181: 0 | P181: 0 | Q181: 50 | R181: 350 | S181: 0 | T181: 0
C182: 0 | D182: 52 | O182: 0 | P182: 0 | Q182: 50 | R182: 350 | S182: 0 | T182: 0
C183: 0 | D183: 52 | O183: 0 | P183: 0 | Q183: 50 | R183: 350 | S183: 0 | T183: 0
C184: 0 | D184: 52 | O184: 0 | P184: 0 | Q184: 50 | R184: 350 | S184: 0 | T184: 0
C185: 0 | D185: 52 | O185: 0 | P185: 0 | Q185: 50 | R185: 350 | S185: 0 | T185: 0
C186: 0 | D186: 52 | O186: 0 | P186: 0 | Q186: 50 | R186: 350 | S186: 0 | T186: 0
C187: 0 | D187: 52 | O187: 0 | P187: 0 | Q187: 50 | R187: 350 | S187: 0 | T187: 0
C188: 0 | D188: 52 | O188: 0 | P188: 0 | Q188: 50 | R188: 350 | S188: 0 | T188: 0
C189: 0 | D189: 52 | O189: 0 | P189: 0 | Q189: 50 | R189: 350 | S189: 0 | T189: 0
C190: 0 | D190: 52 | O190: 0 | P190: 0 | Q190: 50 | R190: 350 | S190: 0 | T190: 0
C191: 0 | D191: 52 | O191: 0 | P191: 0 | Q191: 50 | R191: 350 | S191: 0 | T191: 0
C192: 0 | D192: 52 | O192: 0 | P192: 0 | Q192: 50 | R192: 350 | S192: 0 | T192: 0
C193: 0 | D193: 52 | O193: 0 | P193: 0 | Q193: 50 | R193: 350 | S193: 0 | T193: 0
C194: 0 | D194: 52 | O194: 0 | P194: 0 | Q194: 50 | R194: 350 | S194: 0 | T194: 0
C195: 0 | D195: 52 | O195: 0 | P195: 0 | Q195: 50 | R195: 350 | S195: 0 | T195: 0
C196: 0 | D196: 52 | O196: 0 | P196: 0 | Q196: 50 | R196: 350 | S196: 0 | T196: 0
C197: 0 | D197: 52 | O197: 0 | P197: 0 | Q197: 50 | R197: 350 | S197: 0 | T197: 0
C198: 0 | D198: 52 | O198: 0 | P198: 0 | Q198: 50 | R198: 350 | S198: 0 | T198: 0
C199: 0 | D199: 52 | O199: 0 | P199: 0 | Q199: 50 | R199: 350 | S199: 0 | T199: 0
C200: 0 | D200: 52 | O200: 0 | P200: 0 | Q200: 50 | R200: 350 | S200: 0 | T200: 0
C201: 0 | D201: =INT(MOD(INT((B201-2)/7)+0.6,52+5/28))+1 -> 52 | O201: =IF(L201="v",0,M201-N201) -> 0 | P201: =IF(L201="v",M201-N201,0) -> 0 | Q201: 50 | R201: 350 | S201: 0 | T201: 0
C202: =IF(B202=0,0,(DATE(YEAR(B202),MONTH(B202),DAY(B202)))) -> 0 | D202: 52 | E202: =IF(C202=0,"",UPPER(TEXT(B202,"mmmm"))) ->  | O202: 0 | P202: 0 | Q202: 50 | R202: 350 | S202: 0 | T202: 0
C203: 0 | D203: 52 | O203: 0 | P203: 0 | Q203: 50 | R203: 350 | S203: 0 | T203: 0
C204: 0 | D204: 52 | O204: 0 | P204: 0 | Q204: 50 | R204: 350 | S204: 0 | T204: 0
C205: 0 | D205: 52 | O205: 0 | P205: 0 | Q205: 50 | R205: 350 | S205: 0 | T205: 0
... 799 more rows

Sheet Données
A2: Création de listes déroulantes | F2: trouver le n° semaine (b5=cellule date) | I2: "=ENT(MOD(ENT((B5-2)/7)+0,6;52+5/28))+1"
B3: Catégorie | C3: Paiements | D3: Objets | E3: Libellé | F3: Nb de Règlement | G3: Type doc | H3: TVA | I3: Journal
B4: Taxi | C4: Espèce | D4: Commandes | E4: Vélo1 | F4: R1 | H4: 0.1 | I4: Caisse
B5: Location | C5: Chèque | D5: Factures | E5: Vélo2 | F5: R2 | G5: DE | H5: 0.2 | I5: Banque
B6: Publicité | C6: CB | D6: Remise | E6: Vélo3 | F6: R3 | G6: CO | H6: TVA
B7: Banque | C7: Virement | D7: Frais généraux | E7: Vélo4 | F7: R4 | G7: FA
B8: Divers | C8: Tickets | D8: Frais de personnel | F8: R5 | G8: FALoc
B9: Dépense | C9: Résultat | D9: Cotisations
B10: Résultat | D10: Impots

Sheet Fichier clients
E1: F I C H I E R C L I E N T S | N1: F I C H I E R C L I E N T S
D4: =1 -> 1 | E4: 2 | F4: 3 | G4: 4 | H4: 5 | I4: 6 | J4: 7 | K4: 8 | L4: 9 | M4: 10 | N4: 11 | O4: 12 | P4: 13 | Q4: 14 | R4: 15 | S4: 16
E5: RESPONSABLE
D6: Code | E6: Nom | F6: Prénom | G6: Téléphone | H6: Enseigne | I6: Adresse | J6: C P | K6: Ville | L6: Téléphone | M6: Société | N6: Adresse | O6: C P | P6: Ville | Q6: N° de siren | R6: Téléphone | S6: Mail
D9: 5618 | H9: fast
D10: 82563 | E10: biloute | F10: paul
D11: NVX
D12: PUCYC0001 | E12: LEVY | F12: Gérald | G12: 614172536 | H12: CYCLOPOLITAIN | I12: ="" ->  | J12: 30000 | K12: NIMES | M12: Cyclopolitain média | N12: 2A rue sainte Marie des terreaux | O12: 69001 | P12: LYON | R12: 478303591 | S12: g.levy@cyclopolitain-media.com

Sheet Fournisseurs
E1: FICHIER FOURNISSEURS | M1: FICHIER FOURNISSEURS
D4: =1 -> 1 | E4: 2 | F4: 3 | G4: 4 | H4: 5 | I4: 6 | J4: 7 | K4: 8 | L4: 9 | M4: 10 | N4: 11 | O4: 12 | P4: 13 | Q4: 14 | R4: 15 | S4: 16
E5: RESPONSABLE
D6: Code | E6: Nom | F6: Prénom | G6: Téléphone | H6: Enseigne | I6: Adresse | J6: C P | K6: Ville | L6: Téléphone | M6: Société | N6: Adresse | O6: C P | P6: Ville | Q6: N° de siren | R6: Téléphone | S6: Mail
D9: NVX
D10: PUCYC0001 | E10: LEVY | F10: Gérald | G10: 614172536 | H10: CYCLOPOLITAIN | I10: ="" ->  | J10: 30000 | K10: NIMES
D11: rose | E11: ali | F11: berk | H11: pli | M11: Cyclopolitain média | N11: 2A rue sainte Marie des terreaux | O11: 69001 | P11: LYON | R11: 478303591 | S11: g.levy@cyclopolitain-media.com

Sheet Prestations
B1: PRESTATIONS
B8: Référence | C8: Descriptif | D8: Prix H.T.
B10: J1 | C10: 1 jour avec 3 cyclonautes | D10: 450
B11: AFF1V1sb | C11: 1 semaine d'affichage avec 1 vélo | D11: 1000
B12: AFF1V1sh | C12: 1 semaine d'affichage avec 1 vélo | D12: 1100
B13: AFF1V2sb | C13: 1 semaine d'affichage avec 2 vélos | D13: 1630
B14: AFF1V2sh | C14: 1 semaine d'affichage avec 2 vélos | D14: 1730
B15: AFF2V1sb | C15: 2 semaines d'affichage avec 1 vélo | D15: 1490
B16: AFF2V1sh | C16: 2 semaines d'affichage avec 1 vélo | D16: 1610
B17: AFF2V2sb | C17: 2 semaines d'affichage avec 2 vélos | D17: 2370
B18: AFF2V2sh | C18: 2 semaines d'affichage avec 2 vélos | D18: 2630
B19: AFF3V1sb | C19: 3 semaines d'affichage avec 1 vélo | D19: 1860
B20: AFF3V1sh | C20: 3 semaines d'affichage avec 1 vélo | D20: 2010
B21: AFF3V2sb | C21: 3 semaines d'affichage avec 2 vélos | D21: 2990
B22: AFF3V2sh | C22: 3 semaines d'affichage avec 2 vélos | D22: 3290
B23: AFF4V1sb | C23: 4 semaines d'affichage avec 1 vélo | D23: 2130
B24: AFF4V1sh | C24: 4 semaines d'affichage avec 1 vélo | D24: 2410
B25: AFF4V2sb | C25: 4 semaines d'affichage avec 2 vélos | D25: 3530
B26: AFF4V2sh | C26: 4 semaines d'affichage avec 2 vélos | D26: 3810
B27: CONDLOC | C27: Aucune semaine réservée n'est remboursable | D27: ="" -> 
B28: CONDRG | C28: Règlement : 30% commande ; Soldes fin de prestation | D28: ="" -> 
B29: Distrivoy | C29: Distribution de flyers aux voyageurs | D29: OFFERT
B30: FL1 | C30: =" - Flyers fournis par l'annonceur -" -> - Flyers fournis par l'annonceur - | D30: ="" -> 
B31: FL2 | C31: Flyers à fournir après acceptation devis | D31: ="" -> 
B32: LOCA | C32: Location cyclo pour la semaine | D32: 50
B33: LOCB | C33: Location cyclo pour la semaine | D33: 75
B34: LOCC | C34: Location cyclo pour la semaine | D34: 100
B35: NTPERS | C35: Nbre d'intervenant fournit par l'annonceur | D35: ="" -> 
B36: NTSEM | C36: =" 1 semaine d'affichage est comprise" -> 1 semaine d'affichage est comprise | D36: ="" -> 
B37: NTSEM1 | C37: =" du mardi au samedi inclus" -> du mardi au samedi inclus | D37: ="" -> 
B38: NTST | C38: STREET MARKETING | D38: ="" -> 
B39: POSE | C39: Conception et pose comprises | D39: ="" -> 
B40: SEM | C40: La prestation se déroulera la semaine | D40: ="" -> 
B41: SEMJ1 | C41: Samedi | D41: ="" -> 
B42: SEMJ2 | C42: Mercredi - Samedi | D42: ="" -> 
B43: SEMJ3 | C43: Mercredi - Vendredi - Samedi | D43: ="" -> 
B44: SEMJDIST | C44: Jours de distribution : | D44: ="" -> 
B45: SEMJX | D45: ="" -> 
B46: TIC10 | C46: Carnet de 10 tickets à 2,00 € + 2 | D46: 20
B47: TIC50 | C47: Carnet de 50 tickets à 2,00 € + 10 | D47: 100
B48: TICCLI | C48: Carnet de 05 tickets à 2,00 € + 1 | D48: 10
B49: TICPILO | C49: Carnet de 05 tickets à 2,00 € + 2 | D49: 10
B50: TRAJ | C50: Supplément par jour pour trajet sur-mesure | D50: 200
B51: CONDRG2 | C51: En votre aimable règlement.
B203: CondDevis | C203: DEVIS GRATUIT. Ce devis est valable 2 mois, mais la date de la prestation ne peut être retenue que par une commande définitive conclue au minimum 20 jours avant la prestation. Pour toute commande, il sera perçu un acompte de 30% du montant total TTC.
B211: CondComm | C211: Cette commande vous engage par le versement d'un acompte non remboursable de 30% du montant total TTC. D'éventuelles modifications devront s'effectuer au minimum 20 jours avant la date de début de la prestation. Fournis : un exemplaire de la commande, des conditions de vente et des travaux d'impression. Bon pour accord, date et signature.
B221: CondFact
B230: CondFactLoc

Sheet EDITIONS
C5: LA COMMUNICATION MOBILE ECOLOGIQUE | L5: Impression et save
B6: 2, rue Saint Antoine 30000 NIMES ; Siren n° 123654988 ; Rc n° 321654987 ; TVA n°654789321 | N6: NOM | O6: gone
B7: Votre contact : | L7: N° de doc | N7: PRENOM | O7: bill
B8: Richard Raveau | D8: 3212 | F8: =IF(D12="nvx",O10,IFERROR(VLOOKUP(D12,ClientsFichier,5,FALSE),"Enseigne")) -> Enseigne | L8: 130000 | N8: TELEPHONE | O8: 605020304
F9: =IF($D$12="nvx",O11,IFERROR(VLOOKUP($D$12,ClientsFichier,6,FALSE),"Adresse")) -> Adresse
B10: Date : | C10: =IF(L11=0,TODAY(),L11) -> 2013-12-08 | F10: =IF($D$12="nvx",O12,IFERROR(VLOOKUP($D$12,ClientsFichier,7,FALSE),"CP")) -> CP | G10: =IF($D$12="nvx",O13,IFERROR(VLOOKUP($D$12,ClientsFichier,8,FALSE),"Ville")) -> Ville | L10: Date facture | N10: ENSEIGNE | O10: OPTIC 2000
F11: =IF(D12="nvx",O16,IFERROR(VLOOKUP(D12,ClientsFichier,10,FALSE),"Société")) -> Société | N11: ADRESSE | O11: place du marché
B12: Code client : | F12: =IF(D12="nvx",O17,IFERROR(VLOOKUP(D12,ClientsFichier,11,FALSE),"Adresse")) -> Adresse | N12: CP | O12: 30000
F13: =IF($D$12="nvx",O18,IFERROR(VLOOKUP($D$12,ClientsFichier,12,FALSE),"CP")) -> CP | G13: =IF($D$12="nvx",O19,IFERROR(VLOOKUP($D$12,ClientsFichier,13,FALSE),"Ville")) -> Ville | N13: VILLE | O13: NIMES
B14: =IF(C15="fa","Commande n° : ","") ->  | F14: Siret n° | G14: =IF($D$12="nvx",O20,IFERROR(VLOOKUP($D$12,ClientsFichier,14,FALSE),"")) ->  | N14: TELEPHONE
B15: Type doc : | E15: Contact : | F15: =IF($D$12="nvx",O6&" "&O7,IFERROR(VLOOKUP($D$12,ClientsFichier,3,FALSE)&" "&(VLOOKUP($D$12,ClientsFichier,2,FALSE)),"")) ->  | I15: =IF($D$12="nvx",O8,IFERROR(VLOOKUP($D$12,ClientsFichier,4,FALSE),"")) -> 
N16: SOCIETE | O16: bidule
D17: =IF(C15="DE","DEVIS N°",IF(C15="CO","COMMANDE N°",IF(C15="FA","FACTURE N°",IF(C15="faloc","FACTURE N°","")))) ->  | F17: =IF(C15=0,"",L8+1) ->  | N17: ADRESSE | O17: trou duc
N18: CP | O18: 75010
B19: Réf. | C19: Descriptif de la prestation | H19: Nbr | I19: Prix H.T | N19: VILLE | O19: PARIS
C20: =IFERROR(VLOOKUP(B20,Prestations,2,FALSE),"") ->  | F20: =IF(OR(B20="TIC10",B20="TIC50",B20="TICCLI"),"OFFERTS","") ->  | I20: =IFERROR(IF(H20=0,(VLOOKUP(B20,Prestations,3,)),(VLOOKUP(B20,Prestations,3,)*H20)),"") ->  | N20: N° de SIREN
F21: =IF(OR(B21="TIC10",B21="TIC50",B21="TICCLI"),"OFFERTS","") ->  | N21: TELEPHONE
F22: =IF(OR(B22="TIC10",B22="TIC50",B22="TICCLI"),"OFFERTS","") -> 
N23: MAIL | O23: raveau.r@gmail.com
M26: J1 | N26: =Prestations!C10 -> 1 jour avec 3 cyclonautes
F27: =IF(OR(B27="TIC10",B27="TIC50",B27="TICCLI"),"OFFERTS","") ->  | M27: =Prestations!B11 -> AFF1V1sb | N27: =Prestations!C11 -> 1 semaine d'affichage avec 1 vélo
M28: =Prestations!B12 -> AFF1V1sh | N28: =Prestations!C12 -> 1 semaine d'affichage avec 1 vélo
M29: =Prestations!B13 -> AFF1V2sb | N29: =Prestations!C13 -> 1 semaine d'affichage avec 2 vélos
M30: =Prestations!B14 -> AFF1V2sh | N30: =Prestations!C14 -> 1 semaine d'affichage avec 2 vélos
M31: =Prestations!B15 -> AFF2V1sb | N31: =Prestations!C15 -> 2 semaines d'affichage avec 1 vélo
M32: =Prestations!B16 -> AFF2V1sh | N32: =Prestations!C16 -> 2 semaines d'affichage avec 1 vélo
M33: =Prestations!B17 -> AFF2V2sb | N33: =Prestations!C17 -> 2 semaines d'affichage avec 2 vélos
M34: =Prestations!B18 -> AFF2V2sh | N34: =Prestations!C18 -> 2 semaines d'affichage avec 2 vélos
M35: =Prestations!B19 -> AFF3V1sb | N35: =Prestations!C19 -> 3 semaines d'affichage avec 1 vélo
M36: =Prestations!B20 -> AFF3V1sh | N36: =Prestations!C20 -> 3 semaines d'affichage avec 1 vélo
M37: =Prestations!B21 -> AFF3V2sb | N37: =Prestations!C21 -> 3 semaines d'affichage avec 2 vélos
M38: =Prestations!B22 -> AFF3V2sh | N38: =Prestations!C22 -> 3 semaines d'affichage avec 2 vélos
M39: =Prestations!B23 -> AFF4V1sb | N39: =Prestations!C23 -> 4 semaines d'affichage avec 1 vélo
M40: =Prestations!B24 -> AFF4V1sh | N40: =Prestations!C24 -> 4 semaines d'affichage avec 1 vélo
M41: =Prestations!B25 -> AFF4V2sb | N41: =Prestations!C25 -> 4 semaines d'affichage avec 2 vélos
M42: =Prestations!B26 -> AFF4V2sh | N42: =Prestations!C26 -> 4 semaines d'affichage avec 2 vélos
M43: =Prestations!B27 -> CONDLOC | N43: =Prestations!C27 -> Aucune semaine réservée n'est remboursable
M44: =Prestations!B28 -> CONDRG | N44: =Prestations!C28 -> Règlement : 30% commande ; Soldes fin de prestation
M45: =Prestations!B29 -> Distrivoy | N45: =Prestations!C29 -> Distribution de flyers aux voyageurs
B46: =IF($C$15="de",CondDevis,IF($C$15="co",CondComm,IF($C$15="fa",condfact,IF($C$15="faloc",condfactloc,"")))) ->  | F46: TOTAL H.T | I46: =SUM(I20:I45) -> 0 | M46: =Prestations!B30 -> FL1 | N46: =Prestations!C30 -> - Flyers fournis par l'annonceur -
E47: =IF(H47=0,"","Remise exceptionnelle de ") ->  | I47: =IF(H47=0,"",I46*H47) ->  | M47: =Prestations!B31 -> FL2 | N47: =Prestations!C31 -> Flyers à fournir après acceptation devis
F48: =IF(H47=0,"","Total H.T. après remise") ->  | I48: =IF(H47=0,"",I46-I47) ->  | M48: =Prestations!B32 -> LOCA | N48: =Prestations!C32 -> Location cyclo pour la semaine
F49: =IF(OR(H49="TVA",H49=0),"","Montant TVA") ->  | H49: TVA | I49: =IFERROR(IF(I48="",I46*H49,I48*H49),"") ->  | M49: =Prestations!B33 -> LOCB | N49: =Prestations!C33 -> Location cyclo pour la semaine
F50: TOTAL T.T.C. | I50: =IFERROR(IF(I48="",(I46+I49),(I48+I49)),0) -> 0 | M50: =Prestations!B34 -> LOCC | N50: =Prestations!C34 -> Location cyclo pour la semaine
F51: Acompte | M51: =Prestations!B35 -> NTPERS | N51: =Prestations!C35 -> Nbre d'intervenant fournit par l'annonceur
F52: RESTE A PAYER | I52: =IFERROR(IF(I50<>0,(I50-I51)-I54,""),0) ->  | M52: =Prestations!B36 -> NTSEM | N52: =Prestations!C36 -> 1 semaine d'affichage est comprise
E53: =IFERROR(VLOOKUP(B45,Prestations,2,FALSE),"") ->  | M53: =Prestations!B37 -> NTSEM1 | N53: =Prestations!C37 -> du mardi au samedi inclus
D54: =IF(F54=0,"","Réglé par chèque le") ->  | M54: =Prestations!B38 -> NTST | N54: =Prestations!C38 -> STREET MARKETING
M55: =Prestations!B39 -> POSE | N55: =Prestations!C39 -> Conception et pose comprises
M56: =Prestations!B40 -> SEM | N56: =Prestations!C40 -> La prestation se déroulera la semaine
M57: =Prestations!B41 -> SEMJ1 | N57: =Prestations!C41 -> Samedi
M58: =Prestations!B42 -> SEMJ2 | N58: =Prestations!C42 -> Mercredi - Samedi
I59: =I50/3 -> 0 | M59: =Prestations!B43 -> SEMJ3 | N59: =Prestations!C43 -> Mercredi - Vendredi - Samedi
M60: =Prestations!B44 -> SEMJDIST | N60: =Prestations!C44 -> Jours de distribution :
M61: =Prestations!B45 -> SEMJX | N61: =Prestations!C45 -> 0
B62: FALSE | M62: =Prestations!B46 -> TIC10 | N62: =Prestations!C46 -> Carnet de 10 tickets à 2,00 € + 2
M63: =Prestations!B47 -> TIC50 | N63: =Prestations!C47 -> Carnet de 50 tickets à 2,00 € + 10
M64: =Prestations!B48 -> TICCLI | N64: =Prestations!C48 -> Carnet de 05 tickets à 2,00 € + 1
M65: =Prestations!B49 -> TICPILO | N65: =Prestations!C49 -> Carnet de 05 tickets à 2,00 € + 2
M66: =Prestations!B50 -> TRAJ | N66: =Prestations!C50 -> Supplément par jour pour trajet sur-mesure
M67: =Prestations!B51 -> CONDRG2 | N67: =Prestations!C51 -> En votre aimable règlement.
M68: =Prestations!B52 -> 0 | N68: =Prestations!C52 -> 0
M69: =Prestations!B53 -> 0 | N69: =Prestations!C53 -> 0
M70: =Prestations!B54 -> 0 | N70: =Prestations!C54 -> 0
M71: =Prestations!B55 -> 0 | N71: =Prestations!C55 -> 0
M72: =Prestations!B56 -> 0 | N72: =Prestations!C56 -> 0
M73: =Prestations!B57 -> 0 | N73: =Prestations!C57 -> 0
M74: =Prestations!B58 -> 0 | N74: =Prestations!C58 -> 0
M75: =Prestations!B59 -> 0 | N75: =Prestations!C59 -> 0
M76: =Prestations!B60 -> 0 | N76: =Prestations!C60 -> 0
M77: =Prestations!B61 -> 0 | N77: =Prestations!C61 -> 0
M78: =Prestations!B62 -> 0 | N78: =Prestations!C62 -> 0
M79: =Prestations!B63 -> 0 | N79: =Prestations!C63 -> 0
M80: =Prestations!B64 -> 0 | N80: =Prestations!C64 -> 0
M81: =Prestations!B65 -> 0 | N81: =Prestations!C65 -> 0
